{"text_format":"1","workbook":"xlsx","n_sheets":3,"sheets":["NCTool","Required Values","Version History"],"not_rendered":{"charts":0,"images":2,"macros":1,"external_links":0,"defined_names":7,"comments":0,"pivot_tables":0},"unopened":[],"bounds":{"document_bytes":16777216,"sheet_cells":100000,"rows_first":2000,"rows_last":500,"rows_between":2000,"halvings":0,"cell_chars":16384,"cell_head_chars":4096},"cells_cut":0,"cells_raw":0,"read":"whole","date_system":"1900"}

{"sheet":"NCTool","index":0,"n_rows":19,"n_cols":54,"rows_kept":19,"cut":false,"hidden":false,"merged":[[18,3,18,4],[9,2,9,4],[9,6,9,9],[0,0,0,20],[11,2,11,4],[5,2,5,4],[7,2,7,4],[3,13,3,18],[7,6,7,9],[5,6,5,9],[11,6,11,9]]}
["MGLVA CC Session 'Required Naming Convention' Tool"]
[null,null,null,null,null,null,null,null,null,null,null,null,null,null,null,null,null,null,null,null,null,null,null,null,null,null,null,null,null,null,null,null,null,null,null,null,null,null,null,null,null,null,null,null,null,null,null,null,null,null,null,null,{"$f":"IFERROR(VLOOKUP(G6,'Required Values'!E:G,3,FALSE)&\"_\"&G8&\"_\"&G10&\"_\"&VLOOKUP(G12,'Required Values'!A:B,2,FALSE),\"\")","v":""},{"$f":"LEN(BA2)","v":0}]
[null,null,null,null,null,null,null,null,null,null,null,null,null,null,null,null,null,null,null,null,null,null,null,null,null,null,null,null,null,null,null,null,null,null,null,null,null,null,null,null,null,null,null,null,null,null,null,null,null,null,null,null,"Values","Char Used"]
[null,null,null,"*Required Fields",null,null,null,null,null,null,null,null,null,{"$f":"CONCATENATE(\"Character's Remaining: \",(64 -BB2), \"/64\")","v":"Character's Remaining: 64/64"},null,null,null,null,null,null,null,null,null,null,null,null,null,null,null,null,null,null,null,null,null,null,null,null,null,null,null,null,null,null,null,null,null,null,null,null,null,null,{"$f":"VLOOKUP(G12,'Required Values'!A:B,2,FALSE)","v":{"$error":"#N/A"}},{"$f":"LEN(BA4)","v":{"$error":"#N/A"}}]
[]
[null,null,"Course Code*",null,null,null,null,null,null,null,null,null,null,null,null,null,null,null,null,null,null,null,null,null,null,null,null,null,null,null,null,null,null,null,null,null,null,null,null,null,null,null,null,null,null,null,null,null,null,null,null,null,{"$f":"VLOOKUP(G6,'Required Values'!E:G,3,FALSE)","v":{"$error":"#N/A"}},{"$f":"LEN(BA6)","v":{"$error":"#N/A"}}]
[null,null,null,null,null,null,null,null,null,null,null,null,null,null,null,null,null,null,null,null,null,null,null,null,null,null,null,null,null,null,null,null,null,null,null,null,null,null,null,null,null,null,null,null,null,null,null,null,null,null,null,null,{"$f":"G8","v":0},1]
[null,null,"Unit Number*",null,null,null,null,null,null,null,null,null,null,null,null,null,null,null,null,null,null,null,null,null,null,null,null,null,null,null,null,null,null,null,null,null,null,null,null,null,null,null,null,null,null,null,null,null,null,null,null,null,{"$f":"G10","v":0},1]
[]
[null,null,"Lesson Number*",null,null,null,null,null,null,null,null,null,null,null,null,null,null,null,null,null,null,null,null,null,null,null,null,null,null,null,null,null,null,null,null,null,null,null,null,null,null,null,null,null,null,null,null,null,null,null,null,null,"Total Req'd:",{"$f":"SUM(BB4:BB9)","v":{"$error":"#N/A"}}]
[]
[null,null,"Session Requirement*"]
[]
[null,null,null,null,null,null,null,null,null,null,null,null,null,null,null,null,null,null,null,null,null,null,null,null,null,null,null,null,null,null,null,null,null,null,null,null,null,null,null,null,null,null,null,null,null,null,null,null,null,null,null,null,"IFERROR(CONCATENATE(VLOOKUP(G5,'Required Values'!A:B,2,FALSE),\"_\",VLOOKUP(G7,'Required Values'!E:G,3,FALSE),\"_\",G9,\"_\",G11,IF(G17 = \"\", ,\" \"),LEFT(G17,(58-BB10)),,\"_\",VLOOKUP(G13,'Required Values'!H:I,2,FALSE),\":\",VLOOKUP(G15,'Required Values'!C:D,2,FALSE)),\"\")"]
[]
[null,null,null,null,null,null,null,null,null,null,null,null,null,null,null,null,null,null,null,null,null,null,null,null,null,null,null,null,null,null,null,null,null,null,null,null,null,null,null,null,null,null,null,null,null,null,null,null,null,null,null,null,"VLOOKUP(G7,'Required Values'!E:G,3,FALSE)"]
[null,null,null,null,null,null,null,null,null,null,null,null,null,null,null,null,null,null,null,null,null,null,null,null,null,null,null,null,null,null,null,null,null,null,null,null,null,null,null,null,null,null,null,null,null,null,null,null,null,null,null,null,"G9"]
[null,null,null,null,null,null,null,null,null,null,null,null,null,null,null,null,null,null,null,null,null,null,null,null,null,null,null,null,null,null,null,null,null,null,null,null,null,null,null,null,null,null,null,null,null,null,null,null,null,null,null,null,"G11"]
["Version: 1.2",null,"Date:","2015-08-24",null,null,null,null,null,null,null,null,null,null,null,null,null,null,null,null,null,null,null,null,null,null,null,null,null,null,null,null,null,null,null,null,null,null,null,null,null,null,null,null,null,null,null,null,null,null,null,null,"VLOOKUP(G5,'Required Values'!A:B,2,FALSE)"]

{"sheet":"Required Values","index":1,"n_rows":710,"n_cols":9,"rows_kept":710,"cut":false,"hidden":false,"merged":[]}
["Full_SessionRequirement","Code_SessionRequirement","Full_Subject","Code_Subject","Con_CourseName&Code","Full_CourseName","Code_CourseCode","Full_TypeofSession","Code_TypeofSession"]
["Required","REQ","Advisory/Homeroom","ADV",{"$f":"CONCATENATE(G2,\":\",F2,\"\")","v":"ATASLA:American Sign Language (Attendance)"},"American Sign Language (Attendance)","ATASLA","Class Connect","CC"]
["Optional ","OPT","Art","ART",{"$f":"CONCATENATE(G3,\":\",F3,\"\")","v":"ATELL:ELL English as a Learned Language"},"ELL English as a Learned Language","ATELL","Learning Coach Sessions","LC"]
["Special Ed service time","SE","Business","BUS",{"$f":"CONCATENATE(G4,\":\",F4,\"\")","v":"ATNMAL:National Math Lab (Attendance)"},"National Math Lab (Attendance)","ATNMAL","Other & Testing","OT"]
[null,null,"Chinese","CHI",{"$f":"CONCATENATE(G5,\":\",F5,\"\")","v":"ATNMPT:PT National Math Lab (Attendance)"},"PT National Math Lab (Attendance)","ATNMPT","Small Group","SG"]
[null,null,"Elective","ELE",{"$f":"CONCATENATE(G6,\":\",F6,\"\")","v":"ATT-030V1-K:Essential Math A (Attendance)"},"Essential Math A (Attendance)","ATT-030V1-K","Study Island","SI"]
[null,null,"English","ENG",{"$f":"CONCATENATE(G7,\":\",F7,\"\")","v":"ATT-075V1-K:Life Skills (HS Attendance)"},"Life Skills (HS Attendance)","ATT-075V1-K","Family Support Team","FAST"]
[null,null,"Finding Your Path","FYP",{"$f":"CONCATENATE(G8,\":\",F8,\"\")","v":"ATT-159V1-K:A+ Algebra 1B (Attendance)"},"A+ Algebra 1B (Attendance)","ATT-159V1-K","Counseling","COU"]
[null,null,"French","FRE",{"$f":"CONCATENATE(G9,\":\",F9,\"\")","v":"ATT-160V1-K:A+ Math - A Plus (Attendance)"},"A+ Math - A Plus (Attendance)","ATT-160V1-K"]
[null,null,"German","GER",{"$f":"CONCATENATE(G10,\":\",F10,\"\")","v":"ATT-161V1-K:A+ Geometry (Attendance)"},"A+ Geometry (Attendance)","ATT-161V1-K"]
[null,null,"History","HST",{"$f":"CONCATENATE(G11,\":\",F11,\"\")","v":"ATT-162V1-K:A+ English I (Attendance)"},"A+ English I (Attendance)","ATT-162V1-K"]
[null,null,"Japanese","JAP",{"$f":"CONCATENATE(G12,\":\",F12,\"\")","v":"ATT-163V1-K:A+ English II (Attendance)"},"A+ English II (Attendance)","ATT-163V1-K"]
[null,null,"Latin","LAT",{"$f":"CONCATENATE(G13,\":\",F13,\"\")","v":"ATT-164V1-K:A+ Biology (Attendance)"},"A+ Biology (Attendance)","ATT-164V1-K"]
[null,null,"Math","MTH",{"$f":"CONCATENATE(G14,\":\",F14,\"\")","v":"ATT-165V1-K:A+ Physical Science (Attendance)"},"A+ Physical Science (Attendance)","ATT-165V1-K"]
[null,null,"Music","MUS",{"$f":"CONCATENATE(G15,\":\",F15,\"\")","v":"ATT-166V1-K:A+ Earth Science (Attendance)"},"A+ Earth Science (Attendance)","ATT-166V1-K"]
[null,null,"Science","SCI",{"$f":"CONCATENATE(G16,\":\",F16,\"\")","v":"ATT-167V1-K:A+ U.S. History I (Attendance)"},"A+ U.S. History I (Attendance)","ATT-167V1-K"]
[null,null,"Spanish","SPA",{"$f":"CONCATENATE(G17,\":\",F17,\"\")","v":"ATT-168V1-K:A+ U.S. History II (Attendance)"},"A+ U.S. History II (Attendance)","ATT-168V1-K"]
[null,null,"Technology","TCH",{"$f":"CONCATENATE(G18,\":\",F18,\"\")","v":"ATT-169V1-K:A+ U.S. Government (Attendance)"},"A+ U.S. Government (Attendance)","ATT-169V1-K"]
[null,null,"Writing","WRI",{"$f":"CONCATENATE(G19,\":\",F19,\"\")","v":"ATT-170V1-K:A+ Economics (Attendance)"},"A+ Economics (Attendance)","ATT-170V1-K"]
[null,null,null,null,{"$f":"CONCATENATE(G20,\":\",F20,\"\")","v":"ATT-171V1-K:A+ U.S. Geography (Attendance)"},"A+ U.S. Geography (Attendance)","ATT-171V1-K"]
[null,null,null,null,{"$f":"CONCATENATE(G21,\":\",F21,\"\")","v":"ATT-172V1-K:A+ World Geography (Attendance)"},"A+ World Geography (Attendance)","ATT-172V1-K"]
[null,null,null,null,{"$f":"CONCATENATE(G22,\":\",F22,\"\")","v":"ATT-173V1-K:A+ Health (Attendance)"},"A+ Health (Attendance)","ATT-173V1-K"]
[null,null,null,null,{"$f":"CONCATENATE(G23,\":\",F23,\"\")","v":"ATT-174V1-K:A+ Personal Finance (Attendance)"},"A+ Personal Finance (Attendance)","ATT-174V1-K"]
[null,null,null,null,{"$f":"CONCATENATE(G24,\":\",F24,\"\")","v":"ATT-175V1-K:A+ Career Essentials (Attendance)"},"A+ Career Essentials (Attendance)","ATT-175V1-K"]
[null,null,null,null,{"$f":"CONCATENATE(G25,\":\",F25,\"\")","v":"ATT-176V1-K:A+ Art Appreciation (Attendance)"},"A+ Art Appreciation (Attendance)","ATT-176V1-K"]
[null,null,null,null,{"$f":"CONCATENATE(G26,\":\",F26,\"\")","v":"ATT-177V1-K:A+ Humanities I - Performing Arts (Attendance)"},"A+ Humanities I - Performing Arts (Attendance)","ATT-177V1-K"]
[null,null,null,null,{"$f":"CONCATENATE(G27,\":\",F27,\"\")","v":"ATT-178V1-K:A+ Humanities II - Literary Arts (Attendance)"},"A+ Humanities II - Literary Arts (Attendance)","ATT-178V1-K"]
[null,null,null,null,{"$f":"CONCATENATE(G28,\":\",F28,\"\")","v":"ATT-179V1-K:A+ Algebra 1A (Attendance)"},"A+ Algebra 1A (Attendance)","ATT-179V1-K"]
[null,null,null,null,{"$f":"CONCATENATE(G29,\":\",F29,\"\")","v":"ATT-185V1-K:ACT/SAT Prep (Attendance)"},"ACT/SAT Prep (Attendance)","ATT-185V1-K"]
[null,null,null,null,{"$f":"CONCATENATE(G30,\":\",F30,\"\")","v":"ATT-187V1-K:National Clubs (Attendance)"},"National Clubs (Attendance)","ATT-187V1-K"]
[null,null,null,null,{"$f":"CONCATENATE(G31,\":\",F31,\"\")","v":"ATT-197V1-K:SE Reading (Attendance)"},"SE Reading (Attendance)","ATT-197V1-K"]
[null,null,null,null,{"$f":"CONCATENATE(G32,\":\",F32,\"\")","v":"ATT-198V1-K:SE Math (Attendance)"},"SE Math (Attendance)","ATT-198V1-K"]
[null,null,null,null,{"$f":"CONCATENATE(G33,\":\",F33,\"\")","v":"ATT-199V1-K:SE Writing (Attendance)"},"SE Writing (Attendance)","ATT-199V1-K"]
[null,null,null,null,{"$f":"CONCATENATE(G34,\":\",F34,\"\")","v":"ATT-200V1-K:SE Transition (Attendance)"},"SE Transition (Attendance)","ATT-200V1-K"]
[null,null,null,null,{"$f":"CONCATENATE(G35,\":\",F35,\"\")","v":"ATT-201V1-K:SE Study Skills (Attendance)"},"SE Study Skills (Attendance)","ATT-201V1-K"]
[null,null,null,null,{"$f":"CONCATENATE(G36,\":\",F36,\"\")","v":"ATT-202V1-K:Unique Learning System (Attendance)"},"Unique Learning System (Attendance)","ATT-202V1-K"]
[null,null,null,null,{"$f":"CONCATENATE(G37,\":\",F37,\"\")","v":"ATT-332V1-K:National Math Lab FT Summer (Attendance)"},"National Math Lab FT Summer (Attendance)","ATT-332V1-K"]
[null,null,null,null,{"$f":"CONCATENATE(G38,\":\",F38,\"\")","v":"ATT-333V1-K:National Math Lab PT Summer (Attendance)"},"National Math Lab PT Summer (Attendance)","ATT-333V1-K"]
[null,null,null,null,{"$f":"CONCATENATE(G39,\":\",F39,\"\")","v":"ATT-346V1-K:Dual Enrollment Elective (Attendance)"},"Dual Enrollment Elective (Attendance)","ATT-346V1-K"]
[null,null,null,null,{"$f":"CONCATENATE(G40,\":\",F40,\"\")","v":"ATT-359V1-K:A+ Social Studies (Attendance)"},"A+ Social Studies (Attendance)","ATT-359V1-K"]
[null,null,null,null,{"$f":"CONCATENATE(G41,\":\",F41,\"\")","v":"ATT-360V1-K:A+ Science (Attendance)"},"A+ Science (Attendance)","ATT-360V1-K"]
[null,null,null,null,{"$f":"CONCATENATE(G42,\":\",F42,\"\")","v":"ATT-361V1-K:A+ English (Attendance)"},"A+ English (Attendance)","ATT-361V1-K"]
[null,null,null,null,{"$f":"CONCATENATE(G43,\":\",F43,\"\")","v":"ATT-362V1-K:A+ Elective (Attendance)"},"A+ Elective (Attendance)","ATT-362V1-K"]
[null,null,null,null,{"$f":"CONCATENATE(G44,\":\",F44,\"\")","v":"ATT-375V1-K:A+ English III A (Attendance)"},"A+ English III A (Attendance)","ATT-375V1-K"]
[null,null,null,null,{"$f":"CONCATENATE(G45,\":\",F45,\"\")","v":"ATT-376V1-K:A+ English IV A (Attendance)"},"A+ English IV A (Attendance)","ATT-376V1-K"]
[null,null,null,null,{"$f":"CONCATENATE(G46,\":\",F46,\"\")","v":"ATT-377V1-K:A+ Consumer Math (Attendance)"},"A+ Consumer Math (Attendance)","ATT-377V1-K"]
[null,null,null,null,{"$f":"CONCATENATE(G47,\":\",F47,\"\")","v":"ATT-378V1-K:A+ Pre-Algebra A (Attendance)"},"A+ Pre-Algebra A (Attendance)","ATT-378V1-K"]
[null,null,null,null,{"$f":"CONCATENATE(G48,\":\",F48,\"\")","v":"ATT-379V1-K:A+ HSPE Math Prep (Attendance)"},"A+ HSPE Math Prep (Attendance)","ATT-379V1-K"]
[null,null,null,null,{"$f":"CONCATENATE(G49,\":\",F49,\"\")","v":"ATT-380V1-K:A+ HSPE Science Prep (Attendance)"},"A+ HSPE Science Prep (Attendance)","ATT-380V1-K"]
[null,null,null,null,{"$f":"CONCATENATE(G50,\":\",F50,\"\")","v":"ATT-381V1-K:A+ HSPE Language Arts Prep (Attendance)"},"A+ HSPE Language Arts Prep (Attendance)","ATT-381V1-K"]
[null,null,null,null,{"$f":"CONCATENATE(G51,\":\",F51,\"\")","v":"ATT-382V1-K:A+ Computer Literacy A (Attendance)"},"A+ Computer Literacy A (Attendance)","ATT-382V1-K"]
[null,null,null,null,{"$f":"CONCATENATE(G52,\":\",F52,\"\")","v":"ATT-383V1-K:A+ Environmental Science A (Attendance)"},"A+ Environmental Science A (Attendance)","ATT-383V1-K"]
[null,null,null,null,{"$f":"CONCATENATE(G53,\":\",F53,\"\")","v":"ATT-384V1-K:A+ Chemistry I (Attendance)"},"A+ Chemistry I (Attendance)","ATT-384V1-K"]
[null,null,null,null,{"$f":"CONCATENATE(G54,\":\",F54,\"\")","v":"ATT-385V1-K:A+ American History A (Attendance)"},"A+ American History A (Attendance)","ATT-385V1-K"]
[null,null,null,null,{"$f":"CONCATENATE(G55,\":\",F55,\"\")","v":"ATT-386V1-K:A+ World History A (Attendance)"},"A+ World History A (Attendance)","ATT-386V1-K"]
[null,null,null,null,{"$f":"CONCATENATE(G56,\":\",F56,\"\")","v":"ATT-387V1-K:A+ Physical Education (Attendance)"},"A+ Physical Education (Attendance)","ATT-387V1-K"]
[null,null,null,null,{"$f":"CONCATENATE(G57,\":\",F57,\"\")","v":"ATT-596V1-K:USA Test Prep (Attendance)"},"USA Test Prep (Attendance)","ATT-596V1-K"]
[null,null,null,null,{"$f":"CONCATENATE(G58,\":\",F58,\"\")","v":"ATT-615V1-K:Michigan Virtual High School (Attendance)"},"Michigan Virtual High School (Attendance)","ATT-615V1-K"]
[null,null,null,null,{"$f":"CONCATENATE(G59,\":\",F59,\"\")","v":"ATT-616V1-K:Read Eggs (Attendance)"},"Read Eggs (Attendance)","ATT-616V1-K"]
[null,null,null,null,{"$f":"CONCATENATE(G60,\":\",F60,\"\")","v":"ATT-617V1-K:Raz Kids (Attendance)"},"Raz Kids (Attendance)","ATT-617V1-K"]
[null,null,null,null,{"$f":"CONCATENATE(G61,\":\",F61,\"\")","v":"ATTUTR:Tutoring (Attendance)"},"Tutoring (Attendance)","ATTUTR"]
[null,null,null,null,{"$f":"CONCATENATE(G62,\":\",F62,\"\")","v":"CALMS1044:A Quick Welcome to Online Learning (K-2) SY 13-14"},"A Quick Welcome to Online Learning (K-2) SY 13-14","CALMS1044"]
[null,null,null,null,{"$f":"CONCATENATE(G63,\":\",F63,\"\")","v":"CALMS1045:A Quick Welcome to Online Learning (3-5) SY 13-14"},"A Quick Welcome to Online Learning (3-5) SY 13-14","CALMS1045"]
[null,null,null,null,{"$f":"CONCATENATE(G64,\":\",F64,\"\")","v":"CALMS1099:Physical  Science"},"Physical  Science","CALMS1099"]
[null,null,null,null,{"$f":"CONCATENATE(G65,\":\",F65,\"\")","v":"CALMS1100:Advanced Life Science"},"Advanced Life Science","CALMS1100"]
[null,null,null,null,{"$f":"CONCATENATE(G66,\":\",F66,\"\")","v":"CALMS1101:Advanced Physical Science"},"Advanced Physical Science","CALMS1101"]
[null,null,null,null,{"$f":"CONCATENATE(G67,\":\",F67,\"\")","v":"CALMS1102:Intermediate World History B"},"Intermediate World History B","CALMS1102"]
[null,null,null,null,{"$f":"CONCATENATE(G68,\":\",F68,\"\")","v":"CALMS1103:Life Science"},"Life Science","CALMS1103"]
[null,null,null,null,{"$f":"CONCATENATE(G69,\":\",F69,\"\")","v":"CALMS1104:Advanced Earth Science"},"Advanced Earth Science","CALMS1104"]
[null,null,null,null,{"$f":"CONCATENATE(G70,\":\",F70,\"\")","v":"CALMS1105:Intermediate World History A"},"Intermediate World History A","CALMS1105"]
[null,null,null,null,{"$f":"CONCATENATE(G71,\":\",F71,\"\")","v":"CALMS1106:Earth Science"},"Earth Science","CALMS1106"]
[null,null,null,null,{"$f":"CONCATENATE(G72,\":\",F72,\"\")","v":"CALMS1107:American History B"},"American History B","CALMS1107"]
[null,null,null,null,{"$f":"CONCATENATE(G73,\":\",F73,\"\")","v":"CALMS1108:American History A"},"American History A","CALMS1108"]
[null,null,null,null,{"$f":"CONCATENATE(G74,\":\",F74,\"\")","v":"CALMS1127:Language Arts Purple - Cursive Handwriting"},"Language Arts Purple - Cursive Handwriting","CALMS1127"]
[null,null,null,null,{"$f":"CONCATENATE(G75,\":\",F75,\"\")","v":"CALMS1134:Language Skills 4 - GUM"},"Language Skills 4 - GUM","CALMS1134"]
[null,null,null,null,{"$f":"CONCATENATE(G76,\":\",F76,\"\")","v":"CALMS1138:Spelling 4"},"Spelling 4","CALMS1138"]
[null,null,null,null,{"$f":"CONCATENATE(G77,\":\",F77,\"\")","v":"CALMS1140:Language Skills 5 - GUM"},"Language Skills 5 - GUM","CALMS1140"]
[null,null,null,null,{"$f":"CONCATENATE(G78,\":\",F78,\"\")","v":"CALMS1144:Spelling 5"},"Spelling 5","CALMS1144"]
[null,null,null,null,{"$f":"CONCATENATE(G79,\":\",F79,\"\")","v":"CALMS1146:Intermediate Language Skills A - GUM"},"Intermediate Language Skills A - GUM","CALMS1146"]
[null,null,null,null,{"$f":"CONCATENATE(G80,\":\",F80,\"\")","v":"CALMS1147:Intermediate Language Skills A - Vocabulary"},"Intermediate Language Skills A - Vocabulary","CALMS1147"]
[null,null,null,null,{"$f":"CONCATENATE(G81,\":\",F81,\"\")","v":"CALMS1150:Intermediate Language Skills B - GUM"},"Intermediate Language Skills B - GUM","CALMS1150"]
[null,null,null,null,{"$f":"CONCATENATE(G82,\":\",F82,\"\")","v":"CALMS1151:Intermediate Language Skills B - Vocabulary"},"Intermediate Language Skills B - Vocabulary","CALMS1151"]
[null,null,null,null,{"$f":"CONCATENATE(G83,\":\",F83,\"\")","v":"CALMS1154:Literary Analysis and Composition - GUM"},"Literary Analysis and Composition - GUM","CALMS1154"]
[null,null,null,null,{"$f":"CONCATENATE(G84,\":\",F84,\"\")","v":"CALMS1155:Literary Analysis and Composition - Vocabulary"},"Literary Analysis and Composition - Vocabulary","CALMS1155"]
[null,null,null,null,{"$f":"CONCATENATE(G85,\":\",F85,\"\")","v":"CALMS1178:Math 6 - Fundamentals of Geometry & Algebra"},"Math 6 - Fundamentals of Geometry & Algebra","CALMS1178"]
[null,null,null,null,{"$f":"CONCATENATE(G86,\":\",F86,\"\")","v":"CALMS1179:Math 7 - Pre-Algebra"},"Math 7 - Pre-Algebra","CALMS1179"]
[null,null,null,null,{"$f":"CONCATENATE(G87,\":\",F87,\"\")","v":"CALMS1180:Math 8 - Algebra"},"Math 8 - Algebra","CALMS1180"]
[null,null,null,null,{"$f":"CONCATENATE(G88,\":\",F88,\"\")","v":"CALMS12:Stage 1: MARK12 Reading I"},"Stage 1: MARK12 Reading I","CALMS12"]
[null,null,null,null,{"$f":"CONCATENATE(G89,\":\",F89,\"\")","v":"CALMS121:Language Arts Blue - Literature and Comprehension"},"Language Arts Blue - Literature and Comprehension","CALMS121"]
[null,null,null,null,{"$f":"CONCATENATE(G90,\":\",F90,\"\")","v":"CALMS122:Language Arts Blue - Language Skills"},"Language Arts Blue - Language Skills","CALMS122"]
[null,null,null,null,{"$f":"CONCATENATE(G91,\":\",F91,\"\")","v":"CALMS123:Language Arts Blue - Handwriting"},"Language Arts Blue - Handwriting","CALMS123"]
[null,null,null,null,{"$f":"CONCATENATE(G92,\":\",F92,\"\")","v":"CALMS125:Language Arts Green - Literature and Comprehension"},"Language Arts Green - Literature and Comprehension","CALMS125"]
[null,null,null,null,{"$f":"CONCATENATE(G93,\":\",F93,\"\")","v":"CALMS127:Language Arts Green - Vocabulary"},"Language Arts Green - Vocabulary","CALMS127"]
[null,null,null,null,{"$f":"CONCATENATE(G94,\":\",F94,\"\")","v":"CALMS13:Stage 3: MARK12 Reading III"},"Stage 3: MARK12 Reading III","CALMS13"]
[null,null,null,null,{"$f":"CONCATENATE(G95,\":\",F95,\"\")","v":"CALMS137:Language Arts Blue - Phonics"},"Language Arts Blue - Phonics","CALMS137"]
[null,null,null,null,{"$f":"CONCATENATE(G96,\":\",F96,\"\")","v":"CALMS139:Fundamentals of Geometry and Algebra (Math 6)"},"Fundamentals of Geometry and Algebra (Math 6)","CALMS139"]
[null,null,null,null,{"$f":"CONCATENATE(G97,\":\",F97,\"\")","v":"CALMS140:Language Arts Purple - Literature and Comprehension"},"Language Arts Purple - Literature and Comprehension","CALMS140"]
[null,null,null,null,{"$f":"CONCATENATE(G98,\":\",F98,\"\")","v":"CALMS141:Language Arts Orange - Writing Skills"},"Language Arts Orange - Writing Skills","CALMS141"]
[null,null,null,null,{"$f":"CONCATENATE(G99,\":\",F99,\"\")","v":"CALMS142:Language Arts Purple - Writing Skills"},"Language Arts Purple - Writing Skills","CALMS142"]
[null,null,null,null,{"$f":"CONCATENATE(G100,\":\",F100,\"\")","v":"CALMS147:Science 5"},"Science 5","CALMS147"]
[null,null,null,null,{"$f":"CONCATENATE(G101,\":\",F101,\"\")","v":"CALMS152:Language Arts Orange - Vocabulary"},"Language Arts Orange - Vocabulary","CALMS152"]
[null,null,null,null,{"$f":"CONCATENATE(G102,\":\",F102,\"\")","v":"CALMS1528:Math Plus Purple"},"Math Plus Purple","CALMS1528"]
[null,null,null,null,{"$f":"CONCATENATE(G103,\":\",F103,\"\")","v":"CALMS1529:Math Plus Red"},"Math Plus Red","CALMS1529"]
[null,null,null,null,{"$f":"CONCATENATE(G104,\":\",F104,\"\")","v":"CALMS153:Language Arts Orange - Spelling"},"Language Arts Orange - Spelling","CALMS153"]
[null,null,null,null,{"$f":"CONCATENATE(G105,\":\",F105,\"\")","v":"CALMS1530:Math Plus Yellow"},"Math Plus Yellow","CALMS1530"]
[null,null,null,null,{"$f":"CONCATENATE(G106,\":\",F106,\"\")","v":"CALMS1535:Intermediate Mathematics A"},"Intermediate Mathematics A","CALMS1535"]
[null,null,null,null,{"$f":"CONCATENATE(G107,\":\",F107,\"\")","v":"CALMS1536:Intermediate Mathematics B"},"Intermediate Mathematics B","CALMS1536"]
[null,null,null,null,{"$f":"CONCATENATE(G108,\":\",F108,\"\")","v":"CALMS1538:Literature 4"},"Literature 4","CALMS1538"]
[null,null,null,null,{"$f":"CONCATENATE(G109,\":\",F109,\"\")","v":"CALMS1540:Language Skills 4 - Composition"},"Language Skills 4 - Composition","CALMS1540"]
[null,null,null,null,{"$f":"CONCATENATE(G110,\":\",F110,\"\")","v":"CALMS1541:Language Arts Red - Vocabulary"},"Language Arts Red - Vocabulary","CALMS1541"]
[null,null,null,null,{"$f":"CONCATENATE(G111,\":\",F111,\"\")","v":"CALMS1542:Literature 5"},"Literature 5","CALMS1542"]
[null,null,null,null,{"$f":"CONCATENATE(G112,\":\",F112,\"\")","v":"CALMS1544:Language Skills 5: Composition"},"Language Skills 5: Composition","CALMS1544"]
[null,null,null,null,{"$f":"CONCATENATE(G113,\":\",F113,\"\")","v":"CALMS1545:Language Arts Yellow - Vocabulary"},"Language Arts Yellow - Vocabulary","CALMS1545"]
[null,null,null,null,{"$f":"CONCATENATE(G114,\":\",F114,\"\")","v":"CALMS1565:Intermediate Literature A"},"Intermediate Literature A","CALMS1565"]
[null,null,null,null,{"$f":"CONCATENATE(G115,\":\",F115,\"\")","v":"CALMS1566:Intermediate Language Skills A - Composition"},"Intermediate Language Skills A - Composition","CALMS1566"]
[null,null,null,null,{"$f":"CONCATENATE(G116,\":\",F116,\"\")","v":"CALMS1567:Intermediate Literature B"},"Intermediate Literature B","CALMS1567"]
[null,null,null,null,{"$f":"CONCATENATE(G117,\":\",F117,\"\")","v":"CALMS1568:Intermediate Language Skills B - Composition"},"Intermediate Language Skills B - Composition","CALMS1568"]
[null,null,null,null,{"$f":"CONCATENATE(G118,\":\",F118,\"\")","v":"CALMS1569:Literary Analysis and Composition - Literature"},"Literary Analysis and Composition - Literature","CALMS1569"]
[null,null,null,null,{"$f":"CONCATENATE(G119,\":\",F119,\"\")","v":"CALMS157:History 1"},"History 1","CALMS157"]
[null,null,null,null,{"$f":"CONCATENATE(G120,\":\",F120,\"\")","v":"CALMS1570:Literary Analysis and Composition - Composition"},"Literary Analysis and Composition - Composition","CALMS1570"]
[null,null,null,null,{"$f":"CONCATENATE(G121,\":\",F121,\"\")","v":"CALMS1579:A Quick Welcome to Online Learning K-2 SY14-15"},"A Quick Welcome to Online Learning K-2 SY14-15","CALMS1579"]
[null,null,null,null,{"$f":"CONCATENATE(G122,\":\",F122,\"\")","v":"CALMS158:Science 1"},"Science 1","CALMS158"]
[null,null,null,null,{"$f":"CONCATENATE(G123,\":\",F123,\"\")","v":"CALMS1580:A Quick Welcome to Online Learning 3-5 SY14-15"},"A Quick Welcome to Online Learning 3-5 SY14-15","CALMS1580"]
[null,null,null,null,{"$f":"CONCATENATE(G124,\":\",F124,\"\")","v":"CALMS1581:A Quick Welcome to Online Learning 6-8 SY14-15"},"A Quick Welcome to Online Learning 6-8 SY14-15","CALMS1581"]
[null,null,null,null,{"$f":"CONCATENATE(G125,\":\",F125,\"\")","v":"CALMS159:Science 2"},"Science 2","CALMS159"]
[null,null,null,null,{"$f":"CONCATENATE(G126,\":\",F126,\"\")","v":"CALMS160:Science 3"},"Science 3","CALMS160"]
[null,null,null,null,{"$f":"CONCATENATE(G127,\":\",F127,\"\")","v":"CALMS161:Science 4"},"Science 4","CALMS161"]
[null,null,null,null,{"$f":"CONCATENATE(G128,\":\",F128,\"\")","v":"CALMS1653:Intermediate Mathematics C"},"Intermediate Mathematics C","CALMS1653"]
[null,null,null,null,{"$f":"CONCATENATE(G129,\":\",F129,\"\")","v":"CALMS170:History 2"},"History 2","CALMS170"]
[null,null,null,null,{"$f":"CONCATENATE(G130,\":\",F130,\"\")","v":"CALMS172:Social Studies 1"},"Social Studies 1","CALMS172"]
[null,null,null,null,{"$f":"CONCATENATE(G131,\":\",F131,\"\")","v":"CALMS176:History 3"},"History 3","CALMS176"]
[null,null,null,null,{"$f":"CONCATENATE(G132,\":\",F132,\"\")","v":"CALMS177:History 4"},"History 4","CALMS177"]
[null,null,null,null,{"$f":"CONCATENATE(G133,\":\",F133,\"\")","v":"CALMS1799:A Quick Welcome to Online Learning K-2 SY15-16"},"A Quick Welcome to Online Learning K-2 SY15-16","CALMS1799"]
[null,null,null,null,{"$f":"CONCATENATE(G134,\":\",F134,\"\")","v":"CALMS1800:A Quick Welcome to Online Learning 3-5 SY15-16"},"A Quick Welcome to Online Learning 3-5 SY15-16","CALMS1800"]
[null,null,null,null,{"$f":"CONCATENATE(G135,\":\",F135,\"\")","v":"CALMS1801:A Quick Welcome to Online Learning 6-8 SY15-16"},"A Quick Welcome to Online Learning 6-8 SY15-16","CALMS1801"]
[null,null,null,null,{"$f":"CONCATENATE(G136,\":\",F136,\"\")","v":"CALMS1803:Welcome Back to School 1-2 SY15-16"},"Welcome Back to School 1-2 SY15-16","CALMS1803"]
[null,null,null,null,{"$f":"CONCATENATE(G137,\":\",F137,\"\")","v":"CALMS1804:Welcome Back to School 3-5 SY15-16"},"Welcome Back to School 3-5 SY15-16","CALMS1804"]
[null,null,null,null,{"$f":"CONCATENATE(G138,\":\",F138,\"\")","v":"CALMS1805:Welcome Back to School 6-8 SY15-16"},"Welcome Back to School 6-8 SY15-16","CALMS1805"]
[null,null,null,null,{"$f":"CONCATENATE(G139,\":\",F139,\"\")","v":"CALMS181:Science K"},"Science K","CALMS181"]
[null,null,null,null,{"$f":"CONCATENATE(G140,\":\",F140,\"\")","v":"CALMS182:History K"},"History K","CALMS182"]
[null,null,null,null,{"$f":"CONCATENATE(G141,\":\",F141,\"\")","v":"CALMS197:Language Arts Orange - Handwriting"},"Language Arts Orange - Handwriting","CALMS197"]
[null,null,null,null,{"$f":"CONCATENATE(G142,\":\",F142,\"\")","v":"CALMS198:Language Arts Purple - Spelling"},"Language Arts Purple - Spelling","CALMS198"]
[null,null,null,null,{"$f":"CONCATENATE(G143,\":\",F143,\"\")","v":"CALMS2:Math Plus Blue"},"Math Plus Blue","CALMS2"]
[null,null,null,null,{"$f":"CONCATENATE(G144,\":\",F144,\"\")","v":"CALMS200:Language Arts Orange - Literature and Comprehension"},"Language Arts Orange - Literature and Comprehension","CALMS200"]
[null,null,null,null,{"$f":"CONCATENATE(G145,\":\",F145,\"\")","v":"CALMS2036:State History"},"State History","CALMS2036"]
[null,null,null,null,{"$f":"CONCATENATE(G146,\":\",F146,\"\")","v":"CALMS2547:(K-2) Individualized Learning Plan - Get Started with Scantron SY 15/16"},"(K-2) Individualized Learning Plan - Get Started with Scantron SY 15/16","CALMS2547"]
[null,null,null,null,{"$f":"CONCATENATE(G147,\":\",F147,\"\")","v":"CALMS2548:(3-8) Individualized Learning Plan ¿ Get Started with Scantron SY 15/16"},"(3-8) Individualized Learning Plan ¿ Get Started with Scantron SY 15/16","CALMS2548"]
[null,null,null,null,{"$f":"CONCATENATE(G148,\":\",F148,\"\")","v":"CALMS2549:(K-2) Continue Your Individualized Learning Plan with Scantron SY 15/16"},"(K-2) Continue Your Individualized Learning Plan with Scantron SY 15/16","CALMS2549"]
[null,null,null,null,{"$f":"CONCATENATE(G149,\":\",F149,\"\")","v":"CALMS2550:(3-8) Continue Your Individualized Learning Plan with Scantron SY 15/16"},"(3-8) Continue Your Individualized Learning Plan with Scantron SY 15/16","CALMS2550"]
[null,null,null,null,{"$f":"CONCATENATE(G150,\":\",F150,\"\")","v":"CALMS272:Social Studies 2"},"Social Studies 2","CALMS272"]
[null,null,null,null,{"$f":"CONCATENATE(G151,\":\",F151,\"\")","v":"CALMS273:Social Studies 3"},"Social Studies 3","CALMS273"]
[null,null,null,null,{"$f":"CONCATENATE(G152,\":\",F152,\"\")","v":"CALMS274:Social Studies 4"},"Social Studies 4","CALMS274"]
[null,null,null,null,{"$f":"CONCATENATE(G153,\":\",F153,\"\")","v":"CALMS2877:Art American A"},"Art American A","CALMS2877"]
[null,null,null,null,{"$f":"CONCATENATE(G154,\":\",F154,\"\")","v":"CALMS2882:Art 4"},"Art 4","CALMS2882"]
[null,null,null,null,{"$f":"CONCATENATE(G155,\":\",F155,\"\")","v":"CALMS2884:Art 3"},"Art 3","CALMS2884"]
[null,null,null,null,{"$f":"CONCATENATE(G156,\":\",F156,\"\")","v":"CALMS2885:Art 2"},"Art 2","CALMS2885"]
[null,null,null,null,{"$f":"CONCATENATE(G157,\":\",F157,\"\")","v":"CALMS2886:Art 1"},"Art 1","CALMS2886"]
[null,null,null,null,{"$f":"CONCATENATE(G158,\":\",F158,\"\")","v":"CALMS2887:Art K"},"Art K","CALMS2887"]
[null,null,null,null,{"$f":"CONCATENATE(G159,\":\",F159,\"\")","v":"CALMS2993:Spotlight on Music 1"},"Spotlight on Music 1","CALMS2993"]
[null,null,null,null,{"$f":"CONCATENATE(G160,\":\",F160,\"\")","v":"CALMS3:Math Plus Green"},"Math Plus Green","CALMS3"]
[null,null,null,null,{"$f":"CONCATENATE(G161,\":\",F161,\"\")","v":"CALMS3006:Spotlight on Music K"},"Spotlight on Music K","CALMS3006"]
[null,null,null,null,{"$f":"CONCATENATE(G162,\":\",F162,\"\")","v":"CALMS3007:Spotlight on Music 2"},"Spotlight on Music 2","CALMS3007"]
[null,null,null,null,{"$f":"CONCATENATE(G163,\":\",F163,\"\")","v":"CALMS3008:Spotlight on Music 3"},"Spotlight on Music 3","CALMS3008"]
[null,null,null,null,{"$f":"CONCATENATE(G164,\":\",F164,\"\")","v":"CALMS3009:Spotlight on Music 4"},"Spotlight on Music 4","CALMS3009"]
[null,null,null,null,{"$f":"CONCATENATE(G165,\":\",F165,\"\")","v":"CALMS3010:Spotlight on Music 5"},"Spotlight on Music 5","CALMS3010"]
[null,null,null,null,{"$f":"CONCATENATE(G166,\":\",F166,\"\")","v":"CALMS3053:PE With Lessons"},"PE With Lessons","CALMS3053"]
[null,null,null,null,{"$f":"CONCATENATE(G167,\":\",F167,\"\")","v":"CALMS31:Social Studies K"},"Social Studies K","CALMS31"]
[null,null,null,null,{"$f":"CONCATENATE(G168,\":\",F168,\"\")","v":"CALMS318:Summer Fun in the Online School"},"Summer Fun in the Online School","CALMS318"]
[null,null,null,null,{"$f":"CONCATENATE(G169,\":\",F169,\"\")","v":"CALMS34:Introduction to Online Learning (3-5)"},"Introduction to Online Learning (3-5)","CALMS34"]
[null,null,null,null,{"$f":"CONCATENATE(G170,\":\",F170,\"\")","v":"CALMS4:Math Plus Orange"},"Math Plus Orange","CALMS4"]
[null,null,null,null,{"$f":"CONCATENATE(G171,\":\",F171,\"\")","v":"CALMS633:MI Science 6"},"MI Science 6","CALMS633"]
[null,null,null,null,{"$f":"CONCATENATE(G172,\":\",F172,\"\")","v":"CALMS634:MI Science 7"},"MI Science 7","CALMS634"]
[null,null,null,null,{"$f":"CONCATENATE(G173,\":\",F173,\"\")","v":"CALMS656:Language Arts Purple - Vocabulary"},"Language Arts Purple - Vocabulary","CALMS656"]
[null,null,null,null,{"$f":"CONCATENATE(G174,\":\",F174,\"\")","v":"CALMS670:Language Arts Green - PhonicsWorks Advanced & Spelling"},"Language Arts Green - PhonicsWorks Advanced & Spelling","CALMS670"]
[null,null,null,null,{"$f":"CONCATENATE(G175,\":\",F175,\"\")","v":"CALMS671:Language Arts Green - Handwriting & Writing Skills"},"Language Arts Green - Handwriting & Writing Skills","CALMS671"]
[null,null,null,null,{"$f":"CONCATENATE(G176,\":\",F176,\"\")","v":"CALMS8:Stage 2: MARK12 Reading II"},"Stage 2: MARK12 Reading II","CALMS8"]
[null,null,null,null,{"$f":"CONCATENATE(G177,\":\",F177,\"\")","v":"CALMS830:Math+ Blue Appendix"},"Math+ Blue Appendix","CALMS830"]
[null,null,null,null,{"$f":"CONCATENATE(G178,\":\",F178,\"\")","v":"CALMS831:Math+ Green Appendix"},"Math+ Green Appendix","CALMS831"]
[null,null,null,null,{"$f":"CONCATENATE(G179,\":\",F179,\"\")","v":"CALMS832:Math+ Orange Appendix"},"Math+ Orange Appendix","CALMS832"]
[null,null,null,null,{"$f":"CONCATENATE(G180,\":\",F180,\"\")","v":"CALMS991:Welcome to Online Learning (K-2)"},"Welcome to Online Learning (K-2)","CALMS991"]
[null,null,null,null,{"$f":"CONCATENATE(G181,\":\",F181,\"\")","v":"CALMS992:Welcome to Online Learning (3-5)"},"Welcome to Online Learning (3-5)","CALMS992"]
[null,null,null,null,{"$f":"CONCATENATE(G182,\":\",F182,\"\")","v":"CALMS993:Welcome to Online Learning (6-8)"},"Welcome to Online Learning (6-8)","CALMS993"]
[null,null,null,null,{"$f":"CONCATENATE(G183,\":\",F183,\"\")","v":"CNMY1-AG-V2-MIL:Chinese Middle School 1 - AG"},"Chinese Middle School 1 - AG","CNMY1-AG-V2-MIL"]
[null,null,null,null,{"$f":"CONCATENATE(G184,\":\",F184,\"\")","v":"CNMY1-TG-V3-MIL:Chinese Middle School 1 - TG"},"Chinese Middle School 1 - TG","CNMY1-TG-V3-MIL"]
[null,null,null,null,{"$f":"CONCATENATE(G185,\":\",F185,\"\")","v":"CNMY2-TG-V3-MIL:Chinese Middle School 2 - TG"},"Chinese Middle School 2 - TG","CNMY2-TG-V3-MIL"]
[null,null,null,null,{"$f":"CONCATENATE(G186,\":\",F186,\"\")","v":"D-AGR-020V1-DYN:AGR020-DYN Introduction to Forestry & Natural Resources"},"AGR020-DYN Introduction to Forestry & Natural Resources","D-AGR-020V1-DYN"]
[null,null,null,null,{"$f":"CONCATENATE(G187,\":\",F187,\"\")","v":"D-ART-010AV1-K:ART010A Fine Art"},"ART010A Fine Art","D-ART-010AV1-K"]
[null,null,null,null,{"$f":"CONCATENATE(G188,\":\",F188,\"\")","v":"D-ART-010BV1-K:ART010B Fine Art"},"ART010B Fine Art","D-ART-010BV1-K"]
[null,null,null,null,{"$f":"CONCATENATE(G189,\":\",F189,\"\")","v":"D-ART-020AV1-K:ART020A Music Appreciation"},"ART020A Music Appreciation","D-ART-020AV1-K"]
[null,null,null,null,{"$f":"CONCATENATE(G190,\":\",F190,\"\")","v":"D-ART-020BV1-K:ART020B Music Appreciation"},"ART020B Music Appreciation","D-ART-020BV1-K"]
[null,null,null,null,{"$f":"CONCATENATE(G191,\":\",F191,\"\")","v":"D-ART-06V1-K:ART06 Intermediate American Art II"},"ART06 Intermediate American Art II","D-ART-06V1-K"]
[null,null,null,null,{"$f":"CONCATENATE(G192,\":\",F192,\"\")","v":"D-ART-07V1-K:ART07 Intermediate World Art I"},"ART07 Intermediate World Art I","D-ART-07V1-K"]
[null,null,null,null,{"$f":"CONCATENATE(G193,\":\",F193,\"\")","v":"D-ART-08V1-K:ART08 Intermediate World Art II"},"ART08 Intermediate World Art II","D-ART-08V1-K"]
[null,null,null,null,{"$f":"CONCATENATE(G194,\":\",F194,\"\")","v":"D-AV-ART7s-MS-A08:Art 7-AVT"},"Art 7-AVT","D-AV-ART7s-MS-A08"]
[null,null,null,null,{"$f":"CONCATENATE(G195,\":\",F195,\"\")","v":"D-AV-ART8s-MS-A08:Art 8-AVT"},"Art 8-AVT","D-AV-ART8s-MS-A08"]
[null,null,null,null,{"$f":"CONCATENATE(G196,\":\",F196,\"\")","v":"D-AV-ARTAPPs-HS-A08:Art Appreciation-AVT"},"Art Appreciation-AVT","D-AV-ARTAPPs-HS-A08"]
[null,null,null,null,{"$f":"CONCATENATE(G197,\":\",F197,\"\")","v":"D-AV-CARPLNs-HS-A07:Career Planning-AVT"},"Career Planning-AVT","D-AV-CARPLNs-HS-A07"]
[null,null,null,null,{"$f":"CONCATENATE(G198,\":\",F198,\"\")","v":"D-AV-ENVSCIa-HS-A07:Environmental Science A-AVT"},"Environmental Science A-AVT","D-AV-ENVSCIa-HS-A07"]
[null,null,null,null,{"$f":"CONCATENATE(G199,\":\",F199,\"\")","v":"D-AV-ENVSCIb-HS-A07:Environmental Science B-AVT"},"Environmental Science B-AVT","D-AV-ENVSCIb-HS-A07"]
[null,null,null,null,{"$f":"CONCATENATE(G200,\":\",F200,\"\")","v":"D-AV-HEALTH6s-MS-A08:Health 6-AVT"},"Health 6-AVT","D-AV-HEALTH6s-MS-A08"]
[null,null,null,null,{"$f":"CONCATENATE(G201,\":\",F201,\"\")","v":"D-AV-HEALTH7s-MS-A08:Health 7-AVT"},"Health 7-AVT","D-AV-HEALTH7s-MS-A08"]
[null,null,null,null,{"$f":"CONCATENATE(G202,\":\",F202,\"\")","v":"D-AV-HEALTH8s-MS-A08:Health 8-AVT"},"Health 8-AVT","D-AV-HEALTH8s-MS-A08"]
[null,null,null,null,{"$f":"CONCATENATE(G203,\":\",F203,\"\")","v":"D-AV-HEALTHs-HS-A09:Health-AVT"},"Health-AVT","D-AV-HEALTHs-HS-A09"]
[null,null,null,null,{"$f":"CONCATENATE(G204,\":\",F204,\"\")","v":"D-AV-MATH7a-MS-U14:Grade 7 Pre-Algebra A-AVT"},"Grade 7 Pre-Algebra A-AVT","D-AV-MATH7a-MS-U14"]
[null,null,null,null,{"$f":"CONCATENATE(G205,\":\",F205,\"\")","v":"D-AV-MUSICs-HS-A08:Music Appreciation-AVT"},"Music Appreciation-AVT","D-AV-MUSICs-HS-A08"]
[null,null,null,null,{"$f":"CONCATENATE(G206,\":\",F206,\"\")","v":"D-AV-PERFINs-HS-A09:Personal Finance-AVT"},"Personal Finance-AVT","D-AV-PERFINs-HS-A09"]
[null,null,null,null,{"$f":"CONCATENATE(G207,\":\",F207,\"\")","v":"D-AV-PHYSCIa-HS-A09:Physical Science A-AVT"},"Physical Science A-AVT","D-AV-PHYSCIa-HS-A09"]
[null,null,null,null,{"$f":"CONCATENATE(G208,\":\",F208,\"\")","v":"D-AV-PHYSED6s-MS-A08:Physical Education 6-AVT"},"Physical Education 6-AVT","D-AV-PHYSED6s-MS-A08"]
[null,null,null,null,{"$f":"CONCATENATE(G209,\":\",F209,\"\")","v":"D-AV-PHYSED7s-MS-A08:Physical Education 7-AVT"},"Physical Education 7-AVT","D-AV-PHYSED7s-MS-A08"]
[null,null,null,null,{"$f":"CONCATENATE(G210,\":\",F210,\"\")","v":"D-AV-PHYSED8s-MS-A08:Physical Education 8-AVT"},"Physical Education 8-AVT","D-AV-PHYSED8s-MS-A08"]
[null,null,null,null,{"$f":"CONCATENATE(G211,\":\",F211,\"\")","v":"D-AV-PHYSEDa-HS-A05:Physical Education A-AVT"},"Physical Education A-AVT","D-AV-PHYSEDa-HS-A05"]
[null,null,null,null,{"$f":"CONCATENATE(G212,\":\",F212,\"\")","v":"D-AV-PHYSEDb-HS-A05:Physical Education B-AVT"},"Physical Education B-AVT","D-AV-PHYSEDb-HS-A05"]
[null,null,null,null,{"$f":"CONCATENATE(G213,\":\",F213,\"\")","v":"D-AV-SCI7a-MS-A08:Science 7A-AVT"},"Science 7A-AVT","D-AV-SCI7a-MS-A08"]
[null,null,null,null,{"$f":"CONCATENATE(G214,\":\",F214,\"\")","v":"D-AV-SCI7b-MS-A08:Science 7B-AVT"},"Science 7B-AVT","D-AV-SCI7b-MS-A08"]
[null,null,null,null,{"$f":"CONCATENATE(G215,\":\",F215,\"\")","v":"D-AV-SOCST6a-MS-A08:Social Studies 6A-AVT"},"Social Studies 6A-AVT","D-AV-SOCST6a-MS-A08"]
[null,null,null,null,{"$f":"CONCATENATE(G216,\":\",F216,\"\")","v":"D-AV-SOCST7a-MS-A08:Social Studies 7A-AVT"},"Social Studies 7A-AVT","D-AV-SOCST7a-MS-A08"]
[null,null,null,null,{"$f":"CONCATENATE(G217,\":\",F217,\"\")","v":"D-AV-SOCST7b-MS-A08:Social Studies 7B-AVT"},"Social Studies 7B-AVT","D-AV-SOCST7b-MS-A08"]
[null,null,null,null,{"$f":"CONCATENATE(G218,\":\",F218,\"\")","v":"D-AV-WHISTa-FN-A08:World History A-AVT FN"},"World History A-AVT FN","D-AV-WHISTa-FN-A08"]
[null,null,null,null,{"$f":"CONCATENATE(G219,\":\",F219,\"\")","v":"D-BUS-020V1-DYN:BUS020-DYN Introduction to Restaurant Management"},"BUS020-DYN Introduction to Restaurant Management","D-BUS-020V1-DYN"]
[null,null,null,null,{"$f":"CONCATENATE(G220,\":\",F220,\"\")","v":"D-BUS-030V2-K:BUS030 Personal Finance"},"BUS030 Personal Finance","D-BUS-030V2-K"]
[null,null,null,null,{"$f":"CONCATENATE(G221,\":\",F221,\"\")","v":"D-BUS-040V1-K:BUS040 Introduction to Entrepreneurship I"},"BUS040 Introduction to Entrepreneurship I","D-BUS-040V1-K"]
[null,null,null,null,{"$f":"CONCATENATE(G222,\":\",F222,\"\")","v":"D-BUS-050V1-K:BUS050 Introduction to Entrepreneurship II"},"BUS050 Introduction to Entrepreneurship II","D-BUS-050V1-K"]
[null,null,null,null,{"$f":"CONCATENATE(G223,\":\",F223,\"\")","v":"D-BUS-060V1-K:BUS060 Introduction to Marketing I"},"BUS060 Introduction to Marketing I","D-BUS-060V1-K"]
[null,null,null,null,{"$f":"CONCATENATE(G224,\":\",F224,\"\")","v":"D-BUS-070V1-K:BUS070 Introduction to Marketing II"},"BUS070 Introduction to Marketing II","D-BUS-070V1-K"]
[null,null,null,null,{"$f":"CONCATENATE(G225,\":\",F225,\"\")","v":"D-BUS-071V1-DYN:BUS071-DYN Advertising and Sales Promotion"},"BUS071-DYN Advertising and Sales Promotion","D-BUS-071V1-DYN"]
[null,null,null,null,{"$f":"CONCATENATE(G226,\":\",F226,\"\")","v":"D-BUS-090V1-DYN:BUS090-DYN Sports and Entertainment Marketing"},"BUS090-DYN Sports and Entertainment Marketing","D-BUS-090V1-DYN"]
[null,null,null,null,{"$f":"CONCATENATE(G227,\":\",F227,\"\")","v":"D-BUS-111V1-CEN:BUS111-CEN General Accounting 1"},"BUS111-CEN General Accounting 1","D-BUS-111V1-CEN"]
[null,null,null,null,{"$f":"CONCATENATE(G228,\":\",F228,\"\")","v":"D-CAR-010V1-DYN:CAR010-DYN Business and Healthcare Explorations"},"CAR010-DYN Business and Healthcare Explorations","D-CAR-010V1-DYN"]
[null,null,null,null,{"$f":"CONCATENATE(G229,\":\",F229,\"\")","v":"DEEY1:German Elementary Year 1"},"German Elementary Year 1","DEEY1"]
[null,null,null,null,{"$f":"CONCATENATE(G230,\":\",F230,\"\")","v":"DEEY2:German Elementary Year 2"},"German Elementary Year 2","DEEY2"]
[null,null,null,null,{"$f":"CONCATENATE(G231,\":\",F231,\"\")","v":"DEMY1-AG-V2-MIL:German Middle School 1 - AG"},"German Middle School 1 - AG","DEMY1-AG-V2-MIL"]
[null,null,null,null,{"$f":"CONCATENATE(G232,\":\",F232,\"\")","v":"DEMY1-TG-V3-MIL:German Middle School 1 - TG"},"German Middle School 1 - TG","DEMY1-TG-V3-MIL"]
[null,null,null,null,{"$f":"CONCATENATE(G233,\":\",F233,\"\")","v":"DEMY2-TG-V3-MIL:German Middle School 2 - TG"},"German Middle School 2 - TG","DEMY2-TG-V3-MIL"]
[null,null,null,null,{"$f":"CONCATENATE(G234,\":\",F234,\"\")","v":"D-ENG-001AV2-APL:ENG001A-APL English Foundations I"},"ENG001A-APL English Foundations I","D-ENG-001AV2-APL"]
[null,null,null,null,{"$f":"CONCATENATE(G235,\":\",F235,\"\")","v":"D-ENG-001BV2-APL:ENG001B-APL English Foundations I"},"ENG001B-APL English Foundations I","D-ENG-001BV2-APL"]
[null,null,null,null,{"$f":"CONCATENATE(G236,\":\",F236,\"\")","v":"D-ENG-010V2-K:ENG010 Journalism"},"ENG010 Journalism","D-ENG-010V2-K"]
[null,null,null,null,{"$f":"CONCATENATE(G237,\":\",F237,\"\")","v":"D-ENG-011AV2-APL:ENG011A-APL English Foundations II"},"ENG011A-APL English Foundations II","D-ENG-011AV2-APL"]
[null,null,null,null,{"$f":"CONCATENATE(G238,\":\",F238,\"\")","v":"D-ENG-011BV2-APL:ENG011B-APL English Foundations II"},"ENG011B-APL English Foundations II","D-ENG-011BV2-APL"]
[null,null,null,null,{"$f":"CONCATENATE(G239,\":\",F239,\"\")","v":"D-ENG-020V1-K:ENG020 Public Speaking"},"ENG020 Public Speaking","D-ENG-020V1-K"]
[null,null,null,null,{"$f":"CONCATENATE(G240,\":\",F240,\"\")","v":"D-ENG-030AV1-AVT:ENG030A-AVT Creative Writing"},"ENG030A-AVT Creative Writing","D-ENG-030AV1-AVT"]
[null,null,null,null,{"$f":"CONCATENATE(G241,\":\",F241,\"\")","v":"D-ENG-030BV1-AVT:ENG030B-AVT Creative Writing"},"ENG030B-AVT Creative Writing","D-ENG-030BV1-AVT"]
[null,null,null,null,{"$f":"CONCATENATE(G242,\":\",F242,\"\")","v":"D-ENG-06AV1-K:ENG06A Grade 6 Language Arts"},"ENG06A Grade 6 Language Arts","D-ENG-06AV1-K"]
[null,null,null,null,{"$f":"CONCATENATE(G243,\":\",F243,\"\")","v":"D-ENG-06BV1-K:ENG06B Grade 6 Language Arts"},"ENG06B Grade 6 Language Arts","D-ENG-06BV1-K"]
[null,null,null,null,{"$f":"CONCATENATE(G244,\":\",F244,\"\")","v":"D-ENG-07AV1-K:ENG07A Grade 7 Language Arts"},"ENG07A Grade 7 Language Arts","D-ENG-07AV1-K"]
[null,null,null,null,{"$f":"CONCATENATE(G245,\":\",F245,\"\")","v":"D-ENG-07BV1-K:ENG07B Grade 7 Language Arts"},"ENG07B Grade 7 Language Arts","D-ENG-07BV1-K"]
[null,null,null,null,{"$f":"CONCATENATE(G246,\":\",F246,\"\")","v":"D-ENG-08AV1-K:ENG08A Grade 8 Language Arts"},"ENG08A Grade 8 Language Arts","D-ENG-08AV1-K"]
[null,null,null,null,{"$f":"CONCATENATE(G247,\":\",F247,\"\")","v":"D-ENG-08BV1-K:ENG08B Grade 8 Language Arts"},"ENG08B Grade 8 Language Arts","D-ENG-08BV1-K"]
[null,null,null,null,{"$f":"CONCATENATE(G248,\":\",F248,\"\")","v":"D-ENG-102AV1-K:ENG102A Literary Analysis and Composition I"},"ENG102A Literary Analysis and Composition I","D-ENG-102AV1-K"]
[null,null,null,null,{"$f":"CONCATENATE(G249,\":\",F249,\"\")","v":"D-ENG-102BV1-K:ENG102B Literary Analysis and Composition I"},"ENG102B Literary Analysis and Composition I","D-ENG-102BV1-K"]
[null,null,null,null,{"$f":"CONCATENATE(G250,\":\",F250,\"\")","v":"D-ENG-103AV1-K:ENG103A Literary Analysis and Composition I"},"ENG103A Literary Analysis and Composition I","D-ENG-103AV1-K"]
[null,null,null,null,{"$f":"CONCATENATE(G251,\":\",F251,\"\")","v":"D-ENG-103BV1-K:ENG103B Literary Analysis and Composition I"},"ENG103B Literary Analysis and Composition I","D-ENG-103BV1-K"]
[null,null,null,null,{"$f":"CONCATENATE(G252,\":\",F252,\"\")","v":"D-ENG-104AV1-K:ENG104A Honors Literary Analysis and Composition I"},"ENG104A Honors Literary Analysis and Composition I","D-ENG-104AV1-K"]
[null,null,null,null,{"$f":"CONCATENATE(G253,\":\",F253,\"\")","v":"D-ENG-104BV1-K:ENG104B Honors Literary Analysis and Composition I"},"ENG104B Honors Literary Analysis and Composition I","D-ENG-104BV1-K"]
[null,null,null,null,{"$f":"CONCATENATE(G254,\":\",F254,\"\")","v":"D-ENG-106AV1-AVT:ENG106A-AVT English I"},"ENG106A-AVT English I","D-ENG-106AV1-AVT"]
[null,null,null,null,{"$f":"CONCATENATE(G255,\":\",F255,\"\")","v":"D-ENG-106AVG1-K:ENG106AG Literary Analysis and Composition I"},"ENG106AG Literary Analysis and Composition I","D-ENG-106AVG1-K"]
[null,null,null,null,{"$f":"CONCATENATE(G256,\":\",F256,\"\")","v":"D-ENG-106AVSG1-K:ENG106ASG Literary Analysis and Composition I"},"ENG106ASG Literary Analysis and Composition I","D-ENG-106AVSG1-K"]
[null,null,null,null,{"$f":"CONCATENATE(G257,\":\",F257,\"\")","v":"D-ENG-106BV1-AVT:ENG106B-AVT English I"},"ENG106B-AVT English I","D-ENG-106BV1-AVT"]
[null,null,null,null,{"$f":"CONCATENATE(G258,\":\",F258,\"\")","v":"D-ENG-106BVG1-K:ENG106BG Literary Analysis and Composition I"},"ENG106BG Literary Analysis and Composition I","D-ENG-106BVG1-K"]
[null,null,null,null,{"$f":"CONCATENATE(G259,\":\",F259,\"\")","v":"D-ENG-108AV1MI-K:ENG108A English 9 MI"},"ENG108A English 9 MI","D-ENG-108AV1MI-K"]
[null,null,null,null,{"$f":"CONCATENATE(G260,\":\",F260,\"\")","v":"D-ENG-108BV1MI-K:ENG108B English 9 MI"},"ENG108B English 9 MI","D-ENG-108BV1MI-K"]
[null,null,null,null,{"$f":"CONCATENATE(G261,\":\",F261,\"\")","v":"D-ENG-109AV1MI-K:ENG109A English 9 Honors MI"},"ENG109A English 9 Honors MI","D-ENG-109AV1MI-K"]
[null,null,null,null,{"$f":"CONCATENATE(G262,\":\",F262,\"\")","v":"D-ENG-202AV1-K:ENG202A Literary Analysis and Composition II"},"ENG202A Literary Analysis and Composition II","D-ENG-202AV1-K"]
[null,null,null,null,{"$f":"CONCATENATE(G263,\":\",F263,\"\")","v":"D-ENG-202BV1-K:ENG202B Literary Analysis and Composition II"},"ENG202B Literary Analysis and Composition II","D-ENG-202BV1-K"]
[null,null,null,null,{"$f":"CONCATENATE(G264,\":\",F264,\"\")","v":"D-ENG-203AV1-K:ENG203A Literary Analysis and Composition II"},"ENG203A Literary Analysis and Composition II","D-ENG-203AV1-K"]
[null,null,null,null,{"$f":"CONCATENATE(G265,\":\",F265,\"\")","v":"D-ENG-203BV1-K:ENG203B Literary Analysis and Composition II"},"ENG203B Literary Analysis and Composition II","D-ENG-203BV1-K"]
[null,null,null,null,{"$f":"CONCATENATE(G266,\":\",F266,\"\")","v":"D-ENG-204AV1-K:ENG204A Honors Literary Analysis and Composition II"},"ENG204A Honors Literary Analysis and Composition II","D-ENG-204AV1-K"]
[null,null,null,null,{"$f":"CONCATENATE(G267,\":\",F267,\"\")","v":"D-ENG-204BV1-K:ENG204B Honors Literary Analysis and Composition II"},"ENG204B Honors Literary Analysis and Composition II","D-ENG-204BV1-K"]
[null,null,null,null,{"$f":"CONCATENATE(G268,\":\",F268,\"\")","v":"D-ENG-206AV1-AVT:ENG206A-AVT English II"},"ENG206A-AVT English II","D-ENG-206AV1-AVT"]
[null,null,null,null,{"$f":"CONCATENATE(G269,\":\",F269,\"\")","v":"D-ENG-206AVG1-K:ENG206AG Literary Analysis and Composition II"},"ENG206AG Literary Analysis and Composition II","D-ENG-206AVG1-K"]
[null,null,null,null,{"$f":"CONCATENATE(G270,\":\",F270,\"\")","v":"D-ENG-206BV1-AVT:ENG206B-AVT English II"},"ENG206B-AVT English II","D-ENG-206BV1-AVT"]
[null,null,null,null,{"$f":"CONCATENATE(G271,\":\",F271,\"\")","v":"D-ENG-206BVG1-K:ENG206BG Literary Analysis and Composition II"},"ENG206BG Literary Analysis and Composition II","D-ENG-206BVG1-K"]
[null,null,null,null,{"$f":"CONCATENATE(G272,\":\",F272,\"\")","v":"D-ENG-206BVSG1-K:ENG206BSG Literary Analysis and Composition II"},"ENG206BSG Literary Analysis and Composition II","D-ENG-206BVSG1-K"]
[null,null,null,null,{"$f":"CONCATENATE(G273,\":\",F273,\"\")","v":"D-ENG-208AV1MI-K:ENG208A English 10 MI"},"ENG208A English 10 MI","D-ENG-208AV1MI-K"]
[null,null,null,null,{"$f":"CONCATENATE(G274,\":\",F274,\"\")","v":"D-ENG-208BV1MI-K:ENG208B English 10 MI"},"ENG208B English 10 MI","D-ENG-208BV1MI-K"]
[null,null,null,null,{"$f":"CONCATENATE(G275,\":\",F275,\"\")","v":"D-ENG-209AV1MI-K:ENG209A English 10 Honors MI"},"ENG209A English 10 Honors MI","D-ENG-209AV1MI-K"]
[null,null,null,null,{"$f":"CONCATENATE(G276,\":\",F276,\"\")","v":"D-ENG-209BV1MI-K:ENG209B English 10 Honors MI"},"ENG209B English 10 Honors MI","D-ENG-209BV1MI-K"]
[null,null,null,null,{"$f":"CONCATENATE(G277,\":\",F277,\"\")","v":"D-ENG-302AV1-K:ENG302A American Literature"},"ENG302A American Literature","D-ENG-302AV1-K"]
[null,null,null,null,{"$f":"CONCATENATE(G278,\":\",F278,\"\")","v":"D-ENG-302BV1-K:ENG302B American Literature"},"ENG302B American Literature","D-ENG-302BV1-K"]
[null,null,null,null,{"$f":"CONCATENATE(G279,\":\",F279,\"\")","v":"D-ENG-303AV1-K:ENG303A American Literature"},"ENG303A American Literature","D-ENG-303AV1-K"]
[null,null,null,null,{"$f":"CONCATENATE(G280,\":\",F280,\"\")","v":"D-ENG-303BV1-K:ENG303B American Literature"},"ENG303B American Literature","D-ENG-303BV1-K"]
[null,null,null,null,{"$f":"CONCATENATE(G281,\":\",F281,\"\")","v":"D-ENG-304AV1-K:ENG304A Honors American Literature"},"ENG304A Honors American Literature","D-ENG-304AV1-K"]
[null,null,null,null,{"$f":"CONCATENATE(G282,\":\",F282,\"\")","v":"D-ENG-304BV1-K:ENG304B Honors American Literature"},"ENG304B Honors American Literature","D-ENG-304BV1-K"]
[null,null,null,null,{"$f":"CONCATENATE(G283,\":\",F283,\"\")","v":"D-ENG-306AV2-AVT:ENG306A-AVT English III"},"ENG306A-AVT English III","D-ENG-306AV2-AVT"]
[null,null,null,null,{"$f":"CONCATENATE(G284,\":\",F284,\"\")","v":"D-ENG-306AVG1-K:ENG306AG American Literature"},"ENG306AG American Literature","D-ENG-306AVG1-K"]
[null,null,null,null,{"$f":"CONCATENATE(G285,\":\",F285,\"\")","v":"D-ENG-306AVSG1-K:ENG306ASG American Literature"},"ENG306ASG American Literature","D-ENG-306AVSG1-K"]
[null,null,null,null,{"$f":"CONCATENATE(G286,\":\",F286,\"\")","v":"D-ENG-306BV2-AVT:ENG306B-AVT English III"},"ENG306B-AVT English III","D-ENG-306BV2-AVT"]
[null,null,null,null,{"$f":"CONCATENATE(G287,\":\",F287,\"\")","v":"D-ENG-306BVG1-K:ENG306BG American Literature"},"ENG306BG American Literature","D-ENG-306BVG1-K"]
[null,null,null,null,{"$f":"CONCATENATE(G288,\":\",F288,\"\")","v":"D-ENG-306BVSG1-K:ENG306BSG American Literature"},"ENG306BSG American Literature","D-ENG-306BVSG1-K"]
[null,null,null,null,{"$f":"CONCATENATE(G289,\":\",F289,\"\")","v":"D-ENG-313-AV1-K:ENG313A Rhetoric"},"ENG313A Rhetoric","D-ENG-313-AV1-K"]
[null,null,null,null,{"$f":"CONCATENATE(G290,\":\",F290,\"\")","v":"D-ENG-313-BV1-K:ENG313B Rhetoric"},"ENG313B Rhetoric","D-ENG-313-BV1-K"]
[null,null,null,null,{"$f":"CONCATENATE(G291,\":\",F291,\"\")","v":"D-ENG-402AV1-K:ENG402A British and World Literature"},"ENG402A British and World Literature","D-ENG-402AV1-K"]
[null,null,null,null,{"$f":"CONCATENATE(G292,\":\",F292,\"\")","v":"D-ENG-402BV1-K:ENG402B British and World Literature"},"ENG402B British and World Literature","D-ENG-402BV1-K"]
[null,null,null,null,{"$f":"CONCATENATE(G293,\":\",F293,\"\")","v":"D-ENG-403AV1-K:ENG403A British and World Literature"},"ENG403A British and World Literature","D-ENG-403AV1-K"]
[null,null,null,null,{"$f":"CONCATENATE(G294,\":\",F294,\"\")","v":"D-ENG-403BV1-K:ENG403B British and World Literature"},"ENG403B British and World Literature","D-ENG-403BV1-K"]
[null,null,null,null,{"$f":"CONCATENATE(G295,\":\",F295,\"\")","v":"D-ENG-404AV1-K:ENG404A Honors British and World Literature"},"ENG404A Honors British and World Literature","D-ENG-404AV1-K"]
[null,null,null,null,{"$f":"CONCATENATE(G296,\":\",F296,\"\")","v":"D-ENG-404BV1-K:ENG404B Honors British and World Literature"},"ENG404B Honors British and World Literature","D-ENG-404BV1-K"]
[null,null,null,null,{"$f":"CONCATENATE(G297,\":\",F297,\"\")","v":"D-ENG-406AV1-AVT:ENG406A-AVT English IV"},"ENG406A-AVT English IV","D-ENG-406AV1-AVT"]
[null,null,null,null,{"$f":"CONCATENATE(G298,\":\",F298,\"\")","v":"D-ENG-406AVG1-K:ENG406AG British and World Literature"},"ENG406AG British and World Literature","D-ENG-406AVG1-K"]
[null,null,null,null,{"$f":"CONCATENATE(G299,\":\",F299,\"\")","v":"D-ENG-406BV1-AVT:ENG406B-AVT English IV"},"ENG406B-AVT English IV","D-ENG-406BV1-AVT"]
[null,null,null,null,{"$f":"CONCATENATE(G300,\":\",F300,\"\")","v":"D-ENG-406BVG1-K:ENG406BG British and World Literature"},"ENG406BG British and World Literature","D-ENG-406BVG1-K"]
[null,null,null,null,{"$f":"CONCATENATE(G301,\":\",F301,\"\")","v":"D-ENG-406BVSG1-K:ENG406BSG British and World Literature"},"ENG406BSG British and World Literature","D-ENG-406BVSG1-K"]
[null,null,null,null,{"$f":"CONCATENATE(G302,\":\",F302,\"\")","v":"D-ENG-500AV1-K:ENG500A AP(R) English Language and Composition"},"ENG500A AP(R) English Language and Composition","D-ENG-500AV1-K"]
[null,null,null,null,{"$f":"CONCATENATE(G303,\":\",F303,\"\")","v":"D-ENG-500BV1-K:ENG500B AP(R) English Language and Composition"},"ENG500B AP(R) English Language and Composition","D-ENG-500BV1-K"]
[null,null,null,null,{"$f":"CONCATENATE(G304,\":\",F304,\"\")","v":"D-ENG-500PREPV2-K:AP English Language and Composition Exam Review**"},"AP English Language and Composition Exam Review**","D-ENG-500PREPV2-K"]
[null,null,null,null,{"$f":"CONCATENATE(G305,\":\",F305,\"\")","v":"D-ENG-510AV1-K:ENG510A AP(R) English Literature and Composition"},"ENG510A AP(R) English Literature and Composition","D-ENG-510AV1-K"]
[null,null,null,null,{"$f":"CONCATENATE(G306,\":\",F306,\"\")","v":"D-ENG-510BV1-K:ENG510B AP(R) English Literature and Composition"},"ENG510B AP(R) English Literature and Composition","D-ENG-510BV1-K"]
[null,null,null,null,{"$f":"CONCATENATE(G307,\":\",F307,\"\")","v":"D-ENG-510PREPV2-K:AP English Literature and Composition Exam Review**"},"AP English Literature and Composition Exam Review**","D-ENG-510PREPV2-K"]
[null,null,null,null,{"$f":"CONCATENATE(G308,\":\",F308,\"\")","v":"D-HST-010V2-APL:HST010-APL Anthropology"},"HST010-APL Anthropology","D-HST-010V2-APL"]
[null,null,null,null,{"$f":"CONCATENATE(G309,\":\",F309,\"\")","v":"D-HST-020V2-AVT:HST020-AVT Psychology"},"HST020-AVT Psychology","D-HST-020V2-AVT"]
[null,null,null,null,{"$f":"CONCATENATE(G310,\":\",F310,\"\")","v":"D-HST-030V2-AVT:HST030-AVT Economics"},"HST030-AVT Economics","D-HST-030V2-AVT"]
[null,null,null,null,{"$f":"CONCATENATE(G311,\":\",F311,\"\")","v":"D-HST-040V1-AVT:HST040-AVT Civics"},"HST040-AVT Civics","D-HST-040V1-AVT"]
[null,null,null,null,{"$f":"CONCATENATE(G312,\":\",F312,\"\")","v":"D-HST-050AV1-AVT:HST050A-AVT Sociology"},"HST050A-AVT Sociology","D-HST-050AV1-AVT"]
[null,null,null,null,{"$f":"CONCATENATE(G313,\":\",F313,\"\")","v":"D-HST-050BV1-AVT:HST050B-AVT Sociology"},"HST050B-AVT Sociology","D-HST-050BV1-AVT"]
[null,null,null,null,{"$f":"CONCATENATE(G314,\":\",F314,\"\")","v":"D-HST-060V1-DYN:HST060-DYN Sociology I"},"HST060-DYN Sociology I","D-HST-060V1-DYN"]
[null,null,null,null,{"$f":"CONCATENATE(G315,\":\",F315,\"\")","v":"D-HST-061V1-DYN:HST061-DYN Sociology II"},"HST061-DYN Sociology II","D-HST-061V1-DYN"]
[null,null,null,null,{"$f":"CONCATENATE(G316,\":\",F316,\"\")","v":"D-HST-07V1-K:HST07 MS World History I"},"HST07 MS World History I","D-HST-07V1-K"]
[null,null,null,null,{"$f":"CONCATENATE(G317,\":\",F317,\"\")","v":"D-HST-08V1-K:HST08 MS World History II"},"HST08 MS World History II","D-HST-08V1-K"]
[null,null,null,null,{"$f":"CONCATENATE(G318,\":\",F318,\"\")","v":"D-HST-102AV2-K:HST102A World History"},"HST102A World History","D-HST-102AV2-K"]
[null,null,null,null,{"$f":"CONCATENATE(G319,\":\",F319,\"\")","v":"D-HST-102BV2-K:HST102B World History"},"HST102B World History","D-HST-102BV2-K"]
[null,null,null,null,{"$f":"CONCATENATE(G320,\":\",F320,\"\")","v":"D-HST-103AV2-K:HST103A World History"},"HST103A World History","D-HST-103AV2-K"]
[null,null,null,null,{"$f":"CONCATENATE(G321,\":\",F321,\"\")","v":"D-HST-103BV2-K:HST103B World History"},"HST103B World History","D-HST-103BV2-K"]
[null,null,null,null,{"$f":"CONCATENATE(G322,\":\",F322,\"\")","v":"D-HST-104AV1-K:HST104A Honors World History"},"HST104A Honors World History","D-HST-104AV1-K"]
[null,null,null,null,{"$f":"CONCATENATE(G323,\":\",F323,\"\")","v":"D-HST-104BV1-K:HST104B Honors World History"},"HST104B Honors World History","D-HST-104BV1-K"]
[null,null,null,null,{"$f":"CONCATENATE(G324,\":\",F324,\"\")","v":"D-HST-106AV1-AVT:HST106A-AVT World History"},"HST106A-AVT World History","D-HST-106AV1-AVT"]
[null,null,null,null,{"$f":"CONCATENATE(G325,\":\",F325,\"\")","v":"D-HST-106AVG1-K:HST106AG World History"},"HST106AG World History","D-HST-106AVG1-K"]
[null,null,null,null,{"$f":"CONCATENATE(G326,\":\",F326,\"\")","v":"D-HST-106BV1-AVT:HST106B-AVT World History"},"HST106B-AVT World History","D-HST-106BV1-AVT"]
[null,null,null,null,{"$f":"CONCATENATE(G327,\":\",F327,\"\")","v":"D-HST-106BVG1-K:HST106BG World History"},"HST106BG World History","D-HST-106BVG1-K"]
[null,null,null,null,{"$f":"CONCATENATE(G328,\":\",F328,\"\")","v":"D-HST-202AV1-K:HST202A Modern World Studies"},"HST202A Modern World Studies","D-HST-202AV1-K"]
[null,null,null,null,{"$f":"CONCATENATE(G329,\":\",F329,\"\")","v":"D-HST-202BV1-K:HST202B Modern World Studies"},"HST202B Modern World Studies","D-HST-202BV1-K"]
[null,null,null,null,{"$f":"CONCATENATE(G330,\":\",F330,\"\")","v":"D-HST-203AV1-K:HST203A Modern World Studies"},"HST203A Modern World Studies","D-HST-203AV1-K"]
[null,null,null,null,{"$f":"CONCATENATE(G331,\":\",F331,\"\")","v":"D-HST-203BV1-K:HST203B Modern World Studies"},"HST203B Modern World Studies","D-HST-203BV1-K"]
[null,null,null,null,{"$f":"CONCATENATE(G332,\":\",F332,\"\")","v":"D-HST-204AV1-K:HST204A Honors Modern World Studies"},"HST204A Honors Modern World Studies","D-HST-204AV1-K"]
[null,null,null,null,{"$f":"CONCATENATE(G333,\":\",F333,\"\")","v":"D-HST-204BV1-K:HST204B Honors Modern World Studies"},"HST204B Honors Modern World Studies","D-HST-204BV1-K"]
[null,null,null,null,{"$f":"CONCATENATE(G334,\":\",F334,\"\")","v":"D-HST-206AVG1-K:HST206AG Modern World Studies"},"HST206AG Modern World Studies","D-HST-206AVG1-K"]
[null,null,null,null,{"$f":"CONCATENATE(G335,\":\",F335,\"\")","v":"D-HST-206BVG1-K:HST206BG Modern World Studies"},"HST206BG Modern World Studies","D-HST-206BVG1-K"]
[null,null,null,null,{"$f":"CONCATENATE(G336,\":\",F336,\"\")","v":"D-HST-213AV1-AVT:HST213A-AVT Geography"},"HST213A-AVT Geography","D-HST-213AV1-AVT"]
[null,null,null,null,{"$f":"CONCATENATE(G337,\":\",F337,\"\")","v":"D-HST-213BV1-AVT:HST213B-AVT Geography"},"HST213B-AVT Geography","D-HST-213BV1-AVT"]
[null,null,null,null,{"$f":"CONCATENATE(G338,\":\",F338,\"\")","v":"D-HST-216AV1-AVT:HST216A-AVT Geography"},"HST216A-AVT Geography","D-HST-216AV1-AVT"]
[null,null,null,null,{"$f":"CONCATENATE(G339,\":\",F339,\"\")","v":"D-HST-216BV1-AVT:HST216B-AVT Geography"},"HST216B-AVT Geography","D-HST-216BV1-AVT"]
[null,null,null,null,{"$f":"CONCATENATE(G340,\":\",F340,\"\")","v":"D-HST-222AV1-AVT:HST222A-AVT Contemporary World Issues"},"HST222A-AVT Contemporary World Issues","D-HST-222AV1-AVT"]
[null,null,null,null,{"$f":"CONCATENATE(G341,\":\",F341,\"\")","v":"D-HST-222BV1-AVT:HST222B-AVT Contemporary World Issues"},"HST222B-AVT Contemporary World Issues","D-HST-222BV1-AVT"]
[null,null,null,null,{"$f":"CONCATENATE(G342,\":\",F342,\"\")","v":"D-HST-302AV1-K:HST302A US History"},"HST302A US History","D-HST-302AV1-K"]
[null,null,null,null,{"$f":"CONCATENATE(G343,\":\",F343,\"\")","v":"D-HST-302BV1-K:HST302B US History"},"HST302B US History","D-HST-302BV1-K"]
[null,null,null,null,{"$f":"CONCATENATE(G344,\":\",F344,\"\")","v":"D-HST-303AV1-K:HST303A US History"},"HST303A US History","D-HST-303AV1-K"]
[null,null,null,null,{"$f":"CONCATENATE(G345,\":\",F345,\"\")","v":"D-HST-303BV1-K:HST303B US History"},"HST303B US History","D-HST-303BV1-K"]
[null,null,null,null,{"$f":"CONCATENATE(G346,\":\",F346,\"\")","v":"D-HST-304AV1-K:HST304A Honors US History"},"HST304A Honors US History","D-HST-304AV1-K"]
[null,null,null,null,{"$f":"CONCATENATE(G347,\":\",F347,\"\")","v":"D-HST-304BV1-K:HST304B Honors US History"},"HST304B Honors US History","D-HST-304BV1-K"]
[null,null,null,null,{"$f":"CONCATENATE(G348,\":\",F348,\"\")","v":"D-HST-306AV1-AVT:HST306A-AVT American History"},"HST306A-AVT American History","D-HST-306AV1-AVT"]
[null,null,null,null,{"$f":"CONCATENATE(G349,\":\",F349,\"\")","v":"D-HST-306AVG1-K:HST306AG US History"},"HST306AG US History","D-HST-306AVG1-K"]
[null,null,null,null,{"$f":"CONCATENATE(G350,\":\",F350,\"\")","v":"D-HST-306BV1-AVT:HST306B-AVT American History"},"HST306B-AVT American History","D-HST-306BV1-AVT"]
[null,null,null,null,{"$f":"CONCATENATE(G351,\":\",F351,\"\")","v":"D-HST-306BVG1-K:HST306BG US History"},"HST306BG US History","D-HST-306BVG1-K"]
[null,null,null,null,{"$f":"CONCATENATE(G352,\":\",F352,\"\")","v":"D-HST-312AV1-K:HST312A Modern US History"},"HST312A Modern US History","D-HST-312AV1-K"]
[null,null,null,null,{"$f":"CONCATENATE(G353,\":\",F353,\"\")","v":"D-HST-312BV1-K:HST312B Modern US History"},"HST312B Modern US History","D-HST-312BV1-K"]
[null,null,null,null,{"$f":"CONCATENATE(G354,\":\",F354,\"\")","v":"D-HST-313AV1-K:HST313A Modern US History"},"HST313A Modern US History","D-HST-313AV1-K"]
[null,null,null,null,{"$f":"CONCATENATE(G355,\":\",F355,\"\")","v":"D-HST-313BV1-K:HST313B Modern US History"},"HST313B Modern US History","D-HST-313BV1-K"]
[null,null,null,null,{"$f":"CONCATENATE(G356,\":\",F356,\"\")","v":"D-HST-314AV1-K:HST314A Honors Modern US History"},"HST314A Honors Modern US History","D-HST-314AV1-K"]
[null,null,null,null,{"$f":"CONCATENATE(G357,\":\",F357,\"\")","v":"D-HST-314BV1-K:HST314B Honors Modern US History"},"HST314B Honors Modern US History","D-HST-314BV1-K"]
[null,null,null,null,{"$f":"CONCATENATE(G358,\":\",F358,\"\")","v":"D-HST-316AVG1-K:HST316AG Modern US History"},"HST316AG Modern US History","D-HST-316AVG1-K"]
[null,null,null,null,{"$f":"CONCATENATE(G359,\":\",F359,\"\")","v":"D-HST-316BVG1-K:HST316BG Modern US History"},"HST316BG Modern US History","D-HST-316BVG1-K"]
[null,null,null,null,{"$f":"CONCATENATE(G360,\":\",F360,\"\")","v":"D-HST-402V1-K:HST402 US Government and Politics"},"HST402 US Government and Politics","D-HST-402V1-K"]
[null,null,null,null,{"$f":"CONCATENATE(G361,\":\",F361,\"\")","v":"D-HST-403V1-K:HST403 US Government and Politics"},"HST403 US Government and Politics","D-HST-403V1-K"]
[null,null,null,null,{"$f":"CONCATENATE(G362,\":\",F362,\"\")","v":"D-HST-406V1-AVT:HST406-AVT American Government"},"HST406-AVT American Government","D-HST-406V1-AVT"]
[null,null,null,null,{"$f":"CONCATENATE(G363,\":\",F363,\"\")","v":"D-HST-412V1-K:HST412 US and Global Economics"},"HST412 US and Global Economics","D-HST-412V1-K"]
[null,null,null,null,{"$f":"CONCATENATE(G364,\":\",F364,\"\")","v":"D-HST-413V1-K:HST413 US and Global Economics"},"HST413 US and Global Economics","D-HST-413V1-K"]
[null,null,null,null,{"$f":"CONCATENATE(G365,\":\",F365,\"\")","v":"D-HST-416V1-AVT:HST416-AVT Economics"},"HST416-AVT Economics","D-HST-416V1-AVT"]
[null,null,null,null,{"$f":"CONCATENATE(G366,\":\",F366,\"\")","v":"D-HST-422AV1-AVT:HST422A-AVT Contemporary World Issues"},"HST422A-AVT Contemporary World Issues","D-HST-422AV1-AVT"]
[null,null,null,null,{"$f":"CONCATENATE(G367,\":\",F367,\"\")","v":"D-HST-422BV1-AVT:HST422B-AVT Contemporary World Issues"},"HST422B-AVT Contemporary World Issues","D-HST-422BV1-AVT"]
[null,null,null,null,{"$f":"CONCATENATE(G368,\":\",F368,\"\")","v":"D-HST-423AV1-K:HST423A US Government"},"HST423A US Government","D-HST-423AV1-K"]
[null,null,null,null,{"$f":"CONCATENATE(G369,\":\",F369,\"\")","v":"D-HST-423BV1-K:HST423B US Government"},"HST423B US Government","D-HST-423BV1-K"]
[null,null,null,null,{"$f":"CONCATENATE(G370,\":\",F370,\"\")","v":"D-HST-424AV1-K:HST424A Honors US Government"},"HST424A Honors US Government","D-HST-424AV1-K"]
[null,null,null,null,{"$f":"CONCATENATE(G371,\":\",F371,\"\")","v":"D-HST-424BV1-K:HST424B Honors US Government"},"HST424B Honors US Government","D-HST-424BV1-K"]
[null,null,null,null,{"$f":"CONCATENATE(G372,\":\",F372,\"\")","v":"D-HST-500AV2-A:HST500A AP(R) US History"},"HST500A AP(R) US History","D-HST-500AV2-A"]
[null,null,null,null,{"$f":"CONCATENATE(G373,\":\",F373,\"\")","v":"D-HST-500BV2-A:HST500B AP(R) US History"},"HST500B AP(R) US History","D-HST-500BV2-A"]
[null,null,null,null,{"$f":"CONCATENATE(G374,\":\",F374,\"\")","v":"D-HST-500PREPV2-K:AP US History Exam Review"},"AP US History Exam Review","D-HST-500PREPV2-K"]
[null,null,null,null,{"$f":"CONCATENATE(G375,\":\",F375,\"\")","v":"D-HST-510PREPV2-K:AP US Government and Politics Exam Review"},"AP US Government and Politics Exam Review","D-HST-510PREPV2-K"]
[null,null,null,null,{"$f":"CONCATENATE(G376,\":\",F376,\"\")","v":"D-HST-510V1-K:HST510 AP(R) US Government and Politics"},"HST510 AP(R) US Government and Politics","D-HST-510V1-K"]
[null,null,null,null,{"$f":"CONCATENATE(G377,\":\",F377,\"\")","v":"D-HST-520V1-K:HST520 AP(R) Macroeconomics"},"HST520 AP(R) Macroeconomics","D-HST-520V1-K"]
[null,null,null,null,{"$f":"CONCATENATE(G378,\":\",F378,\"\")","v":"D-HST-530V1-K:HST530 AP(R) Microeconomics"},"HST530 AP(R) Microeconomics","D-HST-530V1-K"]
[null,null,null,null,{"$f":"CONCATENATE(G379,\":\",F379,\"\")","v":"D-HST-540PREPV2-K:AP Psychology Exam Review**"},"AP Psychology Exam Review**","D-HST-540PREPV2-K"]
[null,null,null,null,{"$f":"CONCATENATE(G380,\":\",F380,\"\")","v":"D-HST-540V1-K:HST540 AP(R) Psychology"},"HST540 AP(R) Psychology","D-HST-540V1-K"]
[null,null,null,null,{"$f":"CONCATENATE(G381,\":\",F381,\"\")","v":"D-HST-560AV1-K:HST560A AP(R) World History"},"HST560A AP(R) World History","D-HST-560AV1-K"]
[null,null,null,null,{"$f":"CONCATENATE(G382,\":\",F382,\"\")","v":"D-HST-560BV1-K:HST560B AP(R) World History"},"HST560B AP(R) World History","D-HST-560BV1-K"]
[null,null,null,null,{"$f":"CONCATENATE(G383,\":\",F383,\"\")","v":"D-HST-560PREPV1-K:AP World History Exam Review**"},"AP World History Exam Review**","D-HST-560PREPV1-K"]
[null,null,null,null,{"$f":"CONCATENATE(G384,\":\",F384,\"\")","v":"D-MTH-001AV2-APL:MTH001A-APL Math Foundations I"},"MTH001A-APL Math Foundations I","D-MTH-001AV2-APL"]
[null,null,null,null,{"$f":"CONCATENATE(G385,\":\",F385,\"\")","v":"D-MTH-001BV2-APL:MTH001B-APL Math Foundations I"},"MTH001B-APL Math Foundations I","D-MTH-001BV2-APL"]
[null,null,null,null,{"$f":"CONCATENATE(G386,\":\",F386,\"\")","v":"D-MTH-011AV2-APL:MTH011A-APL Math Foundations II"},"MTH011A-APL Math Foundations II","D-MTH-011AV2-APL"]
[null,null,null,null,{"$f":"CONCATENATE(G387,\":\",F387,\"\")","v":"D-MTH-011BV2-APL:MTH011B-APL Math Foundations II"},"MTH011B-APL Math Foundations II","D-MTH-011BV2-APL"]
[null,null,null,null,{"$f":"CONCATENATE(G388,\":\",F388,\"\")","v":"D-MTH-06AV1MI-K:MTH06A Math 6 MI"},"MTH06A Math 6 MI","D-MTH-06AV1MI-K"]
[null,null,null,null,{"$f":"CONCATENATE(G389,\":\",F389,\"\")","v":"D-MTH-06BV1MI-K:MTH06B Math 6 MI"},"MTH06B Math 6 MI","D-MTH-06BV1MI-K"]
[null,null,null,null,{"$f":"CONCATENATE(G390,\":\",F390,\"\")","v":"D-MTH-07AV1MI-K:MTH07A Math 7 MI"},"MTH07A Math 7 MI","D-MTH-07AV1MI-K"]
[null,null,null,null,{"$f":"CONCATENATE(G391,\":\",F391,\"\")","v":"D-MTH-07BV1MI-K:MTH07B Math 7 MI"},"MTH07B Math 7 MI","D-MTH-07BV1MI-K"]
[null,null,null,null,{"$f":"CONCATENATE(G392,\":\",F392,\"\")","v":"D-MTH-08AV1MI-K:MTH08A Math 8 MI"},"MTH08A Math 8 MI","D-MTH-08AV1MI-K"]
[null,null,null,null,{"$f":"CONCATENATE(G393,\":\",F393,\"\")","v":"D-MTH-08BV1MI-K:MTH08B Math 8 MI"},"MTH08B Math 8 MI","D-MTH-08BV1MI-K"]
[null,null,null,null,{"$f":"CONCATENATE(G394,\":\",F394,\"\")","v":"D-MTH-107AV1-K:MTH107A Developmental Algebra"},"MTH107A Developmental Algebra","D-MTH-107AV1-K"]
[null,null,null,null,{"$f":"CONCATENATE(G395,\":\",F395,\"\")","v":"D-MTH-107BV1-K:MTH107B Developmental Algebra"},"MTH107B Developmental Algebra","D-MTH-107BV1-K"]
[null,null,null,null,{"$f":"CONCATENATE(G396,\":\",F396,\"\")","v":"D-MTH-112AV1-K:MTH112A Pre-Algebra"},"MTH112A Pre-Algebra","D-MTH-112AV1-K"]
[null,null,null,null,{"$f":"CONCATENATE(G397,\":\",F397,\"\")","v":"D-MTH-112BV1-K:MTH112B Pre-Algebra"},"MTH112B Pre-Algebra","D-MTH-112BV1-K"]
[null,null,null,null,{"$f":"CONCATENATE(G398,\":\",F398,\"\")","v":"D-MTH-113AV1-K:MTH113A Pre-Algebra"},"MTH113A Pre-Algebra","D-MTH-113AV1-K"]
[null,null,null,null,{"$f":"CONCATENATE(G399,\":\",F399,\"\")","v":"D-MTH-113BV1-K:MTH113B Pre-Algebra"},"MTH113B Pre-Algebra","D-MTH-113BV1-K"]
[null,null,null,null,{"$f":"CONCATENATE(G400,\":\",F400,\"\")","v":"D-MTH-116AVG1-K:MTH116AG Pre-Algebra"},"MTH116AG Pre-Algebra","D-MTH-116AVG1-K"]
[null,null,null,null,{"$f":"CONCATENATE(G401,\":\",F401,\"\")","v":"D-MTH-116BVG1-K:MTH116BG Pre-Algebra"},"MTH116BG Pre-Algebra","D-MTH-116BVG1-K"]
[null,null,null,null,{"$f":"CONCATENATE(G402,\":\",F402,\"\")","v":"D-MTH-122AV2-K:MTH122A Algebra I"},"MTH122A Algebra I","D-MTH-122AV2-K"]
[null,null,null,null,{"$f":"CONCATENATE(G403,\":\",F403,\"\")","v":"D-MTH-122BV2-K:MTH122B Algebra I"},"MTH122B Algebra I","D-MTH-122BV2-K"]
[null,null,null,null,{"$f":"CONCATENATE(G404,\":\",F404,\"\")","v":"D-MTH-123AV2-K:MTH123A Algebra I"},"MTH123A Algebra I","D-MTH-123AV2-K"]
[null,null,null,null,{"$f":"CONCATENATE(G405,\":\",F405,\"\")","v":"D-MTH-123BV2-K:MTH123B Algebra I"},"MTH123B Algebra I","D-MTH-123BV2-K"]
[null,null,null,null,{"$f":"CONCATENATE(G406,\":\",F406,\"\")","v":"D-MTH-124AV2-K:MTH124A Honors Algebra I"},"MTH124A Honors Algebra I","D-MTH-124AV2-K"]
[null,null,null,null,{"$f":"CONCATENATE(G407,\":\",F407,\"\")","v":"D-MTH-124BV2-K:MTH124B Honors Algebra I"},"MTH124B Honors Algebra I","D-MTH-124BV2-K"]
[null,null,null,null,{"$f":"CONCATENATE(G408,\":\",F408,\"\")","v":"D-MTH-126AV2-AVT:MTH126A-AVT Algebra I"},"MTH126A-AVT Algebra I","D-MTH-126AV2-AVT"]
[null,null,null,null,{"$f":"CONCATENATE(G409,\":\",F409,\"\")","v":"D-MTH-126AVG1-K:MTH126AG Algebra I"},"MTH126AG Algebra I","D-MTH-126AVG1-K"]
[null,null,null,null,{"$f":"CONCATENATE(G410,\":\",F410,\"\")","v":"D-MTH-126BV2-AVT:MTH126B-AVT Algebra I"},"MTH126B-AVT Algebra I","D-MTH-126BV2-AVT"]
[null,null,null,null,{"$f":"CONCATENATE(G411,\":\",F411,\"\")","v":"D-MTH-126BVG1-K:MTH126BG Algebra I"},"MTH126BG Algebra I","D-MTH-126BVG1-K"]
[null,null,null,null,{"$f":"CONCATENATE(G412,\":\",F412,\"\")","v":"D-MTH-126BVSG1-K:MTH126BSG Algebra I"},"MTH126BSG Algebra I","D-MTH-126BVSG1-K"]
[null,null,null,null,{"$f":"CONCATENATE(G413,\":\",F413,\"\")","v":"D-MTH-202AV1-K:MTH202A Geometry"},"MTH202A Geometry","D-MTH-202AV1-K"]
[null,null,null,null,{"$f":"CONCATENATE(G414,\":\",F414,\"\")","v":"D-MTH-202BV1-K:MTH202B Geometry"},"MTH202B Geometry","D-MTH-202BV1-K"]
[null,null,null,null,{"$f":"CONCATENATE(G415,\":\",F415,\"\")","v":"D-MTH-203AV1-K:MTH203A Geometry"},"MTH203A Geometry","D-MTH-203AV1-K"]
[null,null,null,null,{"$f":"CONCATENATE(G416,\":\",F416,\"\")","v":"D-MTH-203BV1-K:MTH203B Geometry"},"MTH203B Geometry","D-MTH-203BV1-K"]
[null,null,null,null,{"$f":"CONCATENATE(G417,\":\",F417,\"\")","v":"D-MTH-204AV1-K:MTH204A Honors Geometry"},"MTH204A Honors Geometry","D-MTH-204AV1-K"]
[null,null,null,null,{"$f":"CONCATENATE(G418,\":\",F418,\"\")","v":"D-MTH-204BV1-K:MTH204B Honors Geometry"},"MTH204B Honors Geometry","D-MTH-204BV1-K"]
[null,null,null,null,{"$f":"CONCATENATE(G419,\":\",F419,\"\")","v":"D-MTH-206AV1-AVT:MTH206A-AVT Geometry"},"MTH206A-AVT Geometry","D-MTH-206AV1-AVT"]
[null,null,null,null,{"$f":"CONCATENATE(G420,\":\",F420,\"\")","v":"D-MTH-206AVG1-K:MTH206AG Geometry"},"MTH206AG Geometry","D-MTH-206AVG1-K"]
[null,null,null,null,{"$f":"CONCATENATE(G421,\":\",F421,\"\")","v":"D-MTH-206AVSG1-K:MTH206ASG Geometry"},"MTH206ASG Geometry","D-MTH-206AVSG1-K"]
[null,null,null,null,{"$f":"CONCATENATE(G422,\":\",F422,\"\")","v":"D-MTH-206BV1-AVT:MTH206B-AVT Geometry"},"MTH206B-AVT Geometry","D-MTH-206BV1-AVT"]
[null,null,null,null,{"$f":"CONCATENATE(G423,\":\",F423,\"\")","v":"D-MTH-206BVG1-K:MTH206BG Geometry"},"MTH206BG Geometry","D-MTH-206BVG1-K"]
[null,null,null,null,{"$f":"CONCATENATE(G424,\":\",F424,\"\")","v":"D-MTH-206BVSG1-K:MTH206BSG?Geometry"},"MTH206BSG?Geometry","D-MTH-206BVSG1-K"]
[null,null,null,null,{"$f":"CONCATENATE(G425,\":\",F425,\"\")","v":"D-MTH-207AV1-K:MTH207A Continuing Algebra"},"MTH207A Continuing Algebra","D-MTH-207AV1-K"]
[null,null,null,null,{"$f":"CONCATENATE(G426,\":\",F426,\"\")","v":"D-MTH-207BV1-K:MTH207B Continuing Algebra"},"MTH207B Continuing Algebra","D-MTH-207BV1-K"]
[null,null,null,null,{"$f":"CONCATENATE(G427,\":\",F427,\"\")","v":"D-MTH-208AV1NV-K:MTH208A Geometry NV"},"MTH208A Geometry NV","D-MTH-208AV1NV-K"]
[null,null,null,null,{"$f":"CONCATENATE(G428,\":\",F428,\"\")","v":"D-MTH-208BV1MI-K:MTH208B Geometry MI"},"MTH208B Geometry MI","D-MTH-208BV1MI-K"]
[null,null,null,null,{"$f":"CONCATENATE(G429,\":\",F429,\"\")","v":"D-MTH-208BV1NV-K:MTH208B Geometry NV"},"MTH208B Geometry NV","D-MTH-208BV1NV-K"]
[null,null,null,null,{"$f":"CONCATENATE(G430,\":\",F430,\"\")","v":"D-MTH-302AV1-K:MTH302A Algebra II"},"MTH302A Algebra II","D-MTH-302AV1-K"]
[null,null,null,null,{"$f":"CONCATENATE(G431,\":\",F431,\"\")","v":"D-MTH-302BV1-K:MTH302B Algebra II"},"MTH302B Algebra II","D-MTH-302BV1-K"]
[null,null,null,null,{"$f":"CONCATENATE(G432,\":\",F432,\"\")","v":"D-MTH-303AV1-K:MTH303A Algebra II"},"MTH303A Algebra II","D-MTH-303AV1-K"]
[null,null,null,null,{"$f":"CONCATENATE(G433,\":\",F433,\"\")","v":"D-MTH-303BV1-K:MTH303B Algebra II"},"MTH303B Algebra II","D-MTH-303BV1-K"]
[null,null,null,null,{"$f":"CONCATENATE(G434,\":\",F434,\"\")","v":"D-MTH-304AV1-K:MTH304A Honors Algebra II"},"MTH304A Honors Algebra II","D-MTH-304AV1-K"]
[null,null,null,null,{"$f":"CONCATENATE(G435,\":\",F435,\"\")","v":"D-MTH-304BV1-K:MTH304B Honors Algebra II"},"MTH304B Honors Algebra II","D-MTH-304BV1-K"]
[null,null,null,null,{"$f":"CONCATENATE(G436,\":\",F436,\"\")","v":"D-MTH-306AV1-AVT:MTH306A-AVT Algebra II"},"MTH306A-AVT Algebra II","D-MTH-306AV1-AVT"]
[null,null,null,null,{"$f":"CONCATENATE(G437,\":\",F437,\"\")","v":"D-MTH-306AVG1-K:MTH306AG Algebra II"},"MTH306AG Algebra II","D-MTH-306AVG1-K"]
[null,null,null,null,{"$f":"CONCATENATE(G438,\":\",F438,\"\")","v":"D-MTH-306BV1-AVT:MTH306B-AVT Algebra II"},"MTH306B-AVT Algebra II","D-MTH-306BV1-AVT"]
[null,null,null,null,{"$f":"CONCATENATE(G439,\":\",F439,\"\")","v":"D-MTH-306BVG1-K:MTH306BG Algebra II"},"MTH306BG Algebra II","D-MTH-306BVG1-K"]
[null,null,null,null,{"$f":"CONCATENATE(G440,\":\",F440,\"\")","v":"D-MTH-306BVSG1-K:MTH306BSG Algebra II"},"MTH306BSG Algebra II","D-MTH-306BVSG1-K"]
[null,null,null,null,{"$f":"CONCATENATE(G441,\":\",F441,\"\")","v":"D-MTH-307AV1-K:MTH307A Practical Math"},"MTH307A Practical Math","D-MTH-307AV1-K"]
[null,null,null,null,{"$f":"CONCATENATE(G442,\":\",F442,\"\")","v":"D-MTH-307BV1-K:MTH307B Practical Math"},"MTH307B Practical Math","D-MTH-307BV1-K"]
[null,null,null,null,{"$f":"CONCATENATE(G443,\":\",F443,\"\")","v":"D-MTH-308AV1MI-K:MTH308A Algebra 2 MI"},"MTH308A Algebra 2 MI","D-MTH-308AV1MI-K"]
[null,null,null,null,{"$f":"CONCATENATE(G444,\":\",F444,\"\")","v":"D-MTH-308BV1MI-K:MTH308B Algebra 2 MI"},"MTH308B Algebra 2 MI","D-MTH-308BV1MI-K"]
[null,null,null,null,{"$f":"CONCATENATE(G445,\":\",F445,\"\")","v":"D-MTH-322AV1-AVT:MTH322A-AVT Consumer Math"},"MTH322A-AVT Consumer Math","D-MTH-322AV1-AVT"]
[null,null,null,null,{"$f":"CONCATENATE(G446,\":\",F446,\"\")","v":"D-MTH-322BV1-AVT:MTH322B-AVT Consumer Math"},"MTH322B-AVT Consumer Math","D-MTH-322BV1-AVT"]
[null,null,null,null,{"$f":"CONCATENATE(G447,\":\",F447,\"\")","v":"D-MTH-332AV1-AVT:MTH332A-AVT Integrated Math"},"MTH332A-AVT Integrated Math","D-MTH-332AV1-AVT"]
[null,null,null,null,{"$f":"CONCATENATE(G448,\":\",F448,\"\")","v":"D-MTH-332BV1-AVT:MTH332B-AVT Integrated Math"},"MTH332B-AVT Integrated Math","D-MTH-332BV1-AVT"]
[null,null,null,null,{"$f":"CONCATENATE(G449,\":\",F449,\"\")","v":"D-MTH-342AV1-AVT:MTH342A-AVT Accounting"},"MTH342A-AVT Accounting","D-MTH-342AV1-AVT"]
[null,null,null,null,{"$f":"CONCATENATE(G450,\":\",F450,\"\")","v":"D-MTH-342BV1-AVT:MTH342B-AVT Accounting"},"MTH342B-AVT Accounting","D-MTH-342BV1-AVT"]
[null,null,null,null,{"$f":"CONCATENATE(G451,\":\",F451,\"\")","v":"D-MTH-392AV1-AVT:MTH392A-AVT Mathematics of Personal Finance"},"MTH392A-AVT Mathematics of Personal Finance","D-MTH-392AV1-AVT"]
[null,null,null,null,{"$f":"CONCATENATE(G452,\":\",F452,\"\")","v":"D-MTH-392BV1-AVT:MTH392B-AVT Mathematics of Personal Finance"},"MTH392B-AVT Mathematics of Personal Finance","D-MTH-392BV1-AVT"]
[null,null,null,null,{"$f":"CONCATENATE(G453,\":\",F453,\"\")","v":"D-MTH-403AV1-K:MTH403A Pre-Calculus/Trigonometry"},"MTH403A Pre-Calculus/Trigonometry","D-MTH-403AV1-K"]
[null,null,null,null,{"$f":"CONCATENATE(G454,\":\",F454,\"\")","v":"D-MTH-403BV1-K:MTH403B Pre-Calculus/Trigonometry"},"MTH403B Pre-Calculus/Trigonometry","D-MTH-403BV1-K"]
[null,null,null,null,{"$f":"CONCATENATE(G455,\":\",F455,\"\")","v":"D-MTH-413V1-K:MTH413 Probability and Statistics"},"MTH413 Probability and Statistics","D-MTH-413V1-K"]
[null,null,null,null,{"$f":"CONCATENATE(G456,\":\",F456,\"\")","v":"D-MTH-433AV1-AVT:MTH433A-AVT Calculus"},"MTH433A-AVT Calculus","D-MTH-433AV1-AVT"]
[null,null,null,null,{"$f":"CONCATENATE(G457,\":\",F457,\"\")","v":"D-MTH-433BV1-AVT:MTH433B-AVT Calculus"},"MTH433B-AVT Calculus","D-MTH-433BV1-AVT"]
[null,null,null,null,{"$f":"CONCATENATE(G458,\":\",F458,\"\")","v":"D-MTH-500AV2-K:MTH500A AP(R) Calculus AB"},"MTH500A AP(R) Calculus AB","D-MTH-500AV2-K"]
[null,null,null,null,{"$f":"CONCATENATE(G459,\":\",F459,\"\")","v":"D-MTH-500BV2-K:MTH500B AP(R) Calculus AB"},"MTH500B AP(R) Calculus AB","D-MTH-500BV2-K"]
[null,null,null,null,{"$f":"CONCATENATE(G460,\":\",F460,\"\")","v":"D-MTH-500PREPV2-K:AP Calculus AB Exam Review**"},"AP Calculus AB Exam Review**","D-MTH-500PREPV2-K"]
[null,null,null,null,{"$f":"CONCATENATE(G461,\":\",F461,\"\")","v":"D-MTH-510AV1-K:MTH510A AP(R) Statistics"},"MTH510A AP(R) Statistics","D-MTH-510AV1-K"]
[null,null,null,null,{"$f":"CONCATENATE(G462,\":\",F462,\"\")","v":"D-MTH-510BV1-K:MTH510B AP(R) Statistics"},"MTH510B AP(R) Statistics","D-MTH-510BV1-K"]
[null,null,null,null,{"$f":"CONCATENATE(G463,\":\",F463,\"\")","v":"D-MTH-510PREPV2-K:AP Statistics Exam Review**"},"AP Statistics Exam Review**","D-MTH-510PREPV2-K"]
[null,null,null,null,{"$f":"CONCATENATE(G464,\":\",F464,\"\")","v":"D-MTH-520AV2-K:MTH520A AP(R) Calculus BC"},"MTH520A AP(R) Calculus BC","D-MTH-520AV2-K"]
[null,null,null,null,{"$f":"CONCATENATE(G465,\":\",F465,\"\")","v":"D-MTH-520BV2-K:MTH520B AP(R) Calculus BC"},"MTH520B AP(R) Calculus BC","D-MTH-520BV2-K"]
[null,null,null,null,{"$f":"CONCATENATE(G466,\":\",F466,\"\")","v":"D-MTH-520PREPV1-K:AP Calculus BC Exam Review*"},"AP Calculus BC Exam Review*","D-MTH-520PREPV1-K"]
[null,null,null,null,{"$f":"CONCATENATE(G467,\":\",F467,\"\")","v":"D-MUS-06V1-K:MUS06 Spotlight On Music"},"MUS06 Spotlight On Music","D-MUS-06V1-K"]
[null,null,null,null,{"$f":"CONCATENATE(G468,\":\",F468,\"\")","v":"D-MUS-07V1-K:MUS07 Spotlight On Music"},"MUS07 Spotlight On Music","D-MUS-07V1-K"]
[null,null,null,null,{"$f":"CONCATENATE(G469,\":\",F469,\"\")","v":"D-MUS-08V1-K:MUS08 Spotlight On Music"},"MUS08 Spotlight On Music","D-MUS-08V1-K"]
[null,null,null,null,{"$f":"CONCATENATE(G470,\":\",F470,\"\")","v":"D-ONLRN:Introduction to High School Online Learning*"},"Introduction to High School Online Learning*","D-ONLRN"]
[null,null,null,null,{"$f":"CONCATENATE(G471,\":\",F471,\"\")","v":"D-ORN-010V3-K:ORN010 Online Learning"},"ORN010 Online Learning","D-ORN-010V3-K"]
[null,null,null,null,{"$f":"CONCATENATE(G472,\":\",F472,\"\")","v":"D-ORN-100ADVSM3V1-K:ORN100 Advisory SM3 Finding Your Path I"},"ORN100 Advisory SM3 Finding Your Path I","D-ORN-100ADVSM3V1-K"]
[null,null,null,null,{"$f":"CONCATENATE(G473,\":\",F473,\"\")","v":"D-ORN-100V1-K:ORN100 Finding Your Path I"},"ORN100 Finding Your Path I","D-ORN-100V1-K"]
[null,null,null,null,{"$f":"CONCATENATE(G474,\":\",F474,\"\")","v":"D-ORN-200ADVSM3V1-K:ORN200 Advisory SM3 Finding Your Path II"},"ORN200 Advisory SM3 Finding Your Path II","D-ORN-200ADVSM3V1-K"]
[null,null,null,null,{"$f":"CONCATENATE(G475,\":\",F475,\"\")","v":"D-ORN-200V1-K:ORN200 Finding Your Path II"},"ORN200 Finding Your Path II","D-ORN-200V1-K"]
[null,null,null,null,{"$f":"CONCATENATE(G476,\":\",F476,\"\")","v":"D-ORN-300ADV2V1-K:ORN300 Advisory 2 Finding Your Path III"},"ORN300 Advisory 2 Finding Your Path III","D-ORN-300ADV2V1-K"]
[null,null,null,null,{"$f":"CONCATENATE(G477,\":\",F477,\"\")","v":"D-ORN-300ADVSM3V1-K:ORN300 Advisory SM3 Finding Your Path III"},"ORN300 Advisory SM3 Finding Your Path III","D-ORN-300ADVSM3V1-K"]
[null,null,null,null,{"$f":"CONCATENATE(G478,\":\",F478,\"\")","v":"D-ORN-300V1-K:ORN300 Finding Your Path III"},"ORN300 Finding Your Path III","D-ORN-300V1-K"]
[null,null,null,null,{"$f":"CONCATENATE(G479,\":\",F479,\"\")","v":"D-ORN-400ADVSM3V1-K:ORN400 Advisory SM3 Finding Your Path IV"},"ORN400 Advisory SM3 Finding Your Path IV","D-ORN-400ADVSM3V1-K"]
[null,null,null,null,{"$f":"CONCATENATE(G480,\":\",F480,\"\")","v":"D-ORN-400V1-K:ORN400 Finding Your Path IV"},"ORN400 Finding Your Path IV","D-ORN-400V1-K"]
[null,null,null,null,{"$f":"CONCATENATE(G481,\":\",F481,\"\")","v":"D-ORN-MSV1-K:ORN MS Welcome to Online Learning"},"ORN MS Welcome to Online Learning","D-ORN-MSV1-K"]
[null,null,null,null,{"$f":"CONCATENATE(G482,\":\",F482,\"\")","v":"D-OTH-010V1-K:OTH010 Skills for Health"},"OTH010 Skills for Health","D-OTH-010V1-K"]
[null,null,null,null,{"$f":"CONCATENATE(G483,\":\",F483,\"\")","v":"D-OTH-016V1-AVT:OTH016-AVT Health"},"OTH016-AVT Health","D-OTH-016V1-AVT"]
[null,null,null,null,{"$f":"CONCATENATE(G484,\":\",F484,\"\")","v":"D-OTH-016VS1-AVT:OTH016S-AVT Health"},"OTH016S-AVT Health","D-OTH-016VS1-AVT"]
[null,null,null,null,{"$f":"CONCATENATE(G485,\":\",F485,\"\")","v":"D-OTH-018V1-DYN:OTH018-DYN Fashion Design and Interior Design"},"OTH018-DYN Fashion Design and Interior Design","D-OTH-018V1-DYN"]
[null,null,null,null,{"$f":"CONCATENATE(G486,\":\",F486,\"\")","v":"D-OTH-020AV1-K:OTH020A Physical Education"},"OTH020A Physical Education","D-OTH-020AV1-K"]
[null,null,null,null,{"$f":"CONCATENATE(G487,\":\",F487,\"\")","v":"D-OTH-020BV1-K:OTH020B Physical Education"},"OTH020B Physical Education","D-OTH-020BV1-K"]
[null,null,null,null,{"$f":"CONCATENATE(G488,\":\",F488,\"\")","v":"D-OTH-026V1-AVT:OTH026-AVT Physical Education"},"OTH026-AVT Physical Education","D-OTH-026V1-AVT"]
[null,null,null,null,{"$f":"CONCATENATE(G489,\":\",F489,\"\")","v":"D-OTH-026VS1-AVT:OTH026S-AVT Physical Education"},"OTH026S-AVT Physical Education","D-OTH-026VS1-AVT"]
[null,null,null,null,{"$f":"CONCATENATE(G490,\":\",F490,\"\")","v":"D-OTH-031V1-DYN:OTH031-DYN Archaeology"},"OTH031-DYN Archaeology","D-OTH-031V1-DYN"]
[null,null,null,null,{"$f":"CONCATENATE(G491,\":\",F491,\"\")","v":"D-OTH-032V1-DYN:OTH032-DYN Astronomy"},"OTH032-DYN Astronomy","D-OTH-032V1-DYN"]
[null,null,null,null,{"$f":"CONCATENATE(G492,\":\",F492,\"\")","v":"D-OTH-033V1-DYN:OTH033-DYN Veterinary Science"},"OTH033-DYN Veterinary Science","D-OTH-033V1-DYN"]
[null,null,null,null,{"$f":"CONCATENATE(G493,\":\",F493,\"\")","v":"D-OTH-034V1-DYN:OTH034-DYN Introduction to Agriscience"},"OTH034-DYN Introduction to Agriscience","D-OTH-034V1-DYN"]
[null,null,null,null,{"$f":"CONCATENATE(G494,\":\",F494,\"\")","v":"D-OTH-035V1-DYN:OTH035-DYN Early Childhood Education"},"OTH035-DYN Early Childhood Education","D-OTH-035V1-DYN"]
[null,null,null,null,{"$f":"CONCATENATE(G495,\":\",F495,\"\")","v":"D-OTH-036V1-DYN:OTH036-DYN Gothic Literature"},"OTH036-DYN Gothic Literature","D-OTH-036V1-DYN"]
[null,null,null,null,{"$f":"CONCATENATE(G496,\":\",F496,\"\")","v":"D-OTH-037V1-DYN:OTH037-DYN Hospitality and Tourism"},"OTH037-DYN Hospitality and Tourism","D-OTH-037V1-DYN"]
[null,null,null,null,{"$f":"CONCATENATE(G497,\":\",F497,\"\")","v":"D-OTH-038V1-DYN:OTH038-DYN Careers in Criminal Justice"},"OTH038-DYN Careers in Criminal Justice","D-OTH-038V1-DYN"]
[null,null,null,null,{"$f":"CONCATENATE(G498,\":\",F498,\"\")","v":"D-OTH-039V1-DYN:OTH039-DYN Criminology"},"OTH039-DYN Criminology","D-OTH-039V1-DYN"]
[null,null,null,null,{"$f":"CONCATENATE(G499,\":\",F499,\"\")","v":"D-OTH-040V1-K:OTH040 Reaching Your Academic Potential"},"OTH040 Reaching Your Academic Potential","D-OTH-040V1-K"]
[null,null,null,null,{"$f":"CONCATENATE(G500,\":\",F500,\"\")","v":"D-OTH-050V1-K:OTH050 Achieving Your Career and College Goals"},"OTH050 Achieving Your Career and College Goals","D-OTH-050V1-K"]
[null,null,null,null,{"$f":"CONCATENATE(G501,\":\",F501,\"\")","v":"D-OTH-060V1-AVT:OTH060-AVT Family and Consumer Science"},"OTH060-AVT Family and Consumer Science","D-OTH-060V1-AVT"]
[null,null,null,null,{"$f":"CONCATENATE(G502,\":\",F502,\"\")","v":"D-OTH-06V1-K:OTH06 Physical Education 6"},"OTH06 Physical Education 6","D-OTH-06V1-K"]
[null,null,null,null,{"$f":"CONCATENATE(G503,\":\",F503,\"\")","v":"D-OTH-070V1-AVT:OTH070-AVT Drivers Safety"},"OTH070-AVT Drivers Safety","D-OTH-070V1-AVT"]
[null,null,null,null,{"$f":"CONCATENATE(G504,\":\",F504,\"\")","v":"D-OTH-07V1-K:OTH07 Physical Education 7"},"OTH07 Physical Education 7","D-OTH-07V1-K"]
[null,null,null,null,{"$f":"CONCATENATE(G505,\":\",F505,\"\")","v":"D-OTH-080V1-AVT:OTH080-AVT Nutrition and Wellness"},"OTH080-AVT Nutrition and Wellness","D-OTH-080V1-AVT"]
[null,null,null,null,{"$f":"CONCATENATE(G506,\":\",F506,\"\")","v":"D-OTH-08V1-K:OTH08 Physical Education 8"},"OTH08 Physical Education 8","D-OTH-08V1-K"]
[null,null,null,null,{"$f":"CONCATENATE(G507,\":\",F507,\"\")","v":"D-OTH-090V1-AVT:OTH090-AVT Life Skills"},"OTH090-AVT Life Skills","D-OTH-090V1-AVT"]
[null,null,null,null,{"$f":"CONCATENATE(G508,\":\",F508,\"\")","v":"D-OTH-090VS1-AVT:OTH090S-AVT Life Skills"},"OTH090S-AVT Life Skills","D-OTH-090VS1-AVT"]
[null,null,null,null,{"$f":"CONCATENATE(G509,\":\",F509,\"\")","v":"D-OTH-091V1-DYN:OTH091-DYN Law and Order"},"OTH091-DYN Law and Order","D-OTH-091V1-DYN"]
[null,null,null,null,{"$f":"CONCATENATE(G510,\":\",F510,\"\")","v":"D-OTH-092V1-DYN:OTH092-DYN Health Sciences I"},"OTH092-DYN Health Sciences I","D-OTH-092V1-DYN"]
[null,null,null,null,{"$f":"CONCATENATE(G511,\":\",F511,\"\")","v":"D-OTH-093V1-DYN:OTH093-DYN Introduction to Culinary Arts"},"OTH093-DYN Introduction to Culinary Arts","D-OTH-093V1-DYN"]
[null,null,null,null,{"$f":"CONCATENATE(G512,\":\",F512,\"\")","v":"D-OTH-094V1-DYN:OTH094-DYN Health Science II"},"OTH094-DYN Health Science II","D-OTH-094V1-DYN"]
[null,null,null,null,{"$f":"CONCATENATE(G513,\":\",F513,\"\")","v":"D-OTH-095V1-DYN:OTH095-DYN Mythology and Folklore"},"OTH095-DYN Mythology and Folklore","D-OTH-095V1-DYN"]
[null,null,null,null,{"$f":"CONCATENATE(G514,\":\",F514,\"\")","v":"D-PRJ-010V1-K:PRJ010 Service Learning"},"PRJ010 Service Learning","D-PRJ-010V1-K"]
[null,null,null,null,{"$f":"CONCATENATE(G515,\":\",F515,\"\")","v":"D-SCI-010V2-K:SCI010 Environmental Science"},"SCI010 Environmental Science","D-SCI-010V2-K"]
[null,null,null,null,{"$f":"CONCATENATE(G516,\":\",F516,\"\")","v":"D-SCI-030V1-K:SCI030 Forensic Science"},"SCI030 Forensic Science","D-SCI-030V1-K"]
[null,null,null,null,{"$f":"CONCATENATE(G517,\":\",F517,\"\")","v":"D-SCI-06AV1-K:SCI06A MS Earth Science"},"SCI06A MS Earth Science","D-SCI-06AV1-K"]
[null,null,null,null,{"$f":"CONCATENATE(G518,\":\",F518,\"\")","v":"D-SCI-06BV1-K:SCI06B MS Earth Science"},"SCI06B MS Earth Science","D-SCI-06BV1-K"]
[null,null,null,null,{"$f":"CONCATENATE(G519,\":\",F519,\"\")","v":"D-SCI-070V1-DYN:SCI070-DYN Introduction to Renewable Technologies"},"SCI070-DYN Introduction to Renewable Technologies","D-SCI-070V1-DYN"]
[null,null,null,null,{"$f":"CONCATENATE(G520,\":\",F520,\"\")","v":"D-SCI-07AV1-K:SCI07A MS Life Science"},"SCI07A MS Life Science","D-SCI-07AV1-K"]
[null,null,null,null,{"$f":"CONCATENATE(G521,\":\",F521,\"\")","v":"D-SCI-07BV1-K:SCI07B MS Life Science"},"SCI07B MS Life Science","D-SCI-07BV1-K"]
[null,null,null,null,{"$f":"CONCATENATE(G522,\":\",F522,\"\")","v":"D-SCI-08AV1-K:SCI08A MS Physical Science"},"SCI08A MS Physical Science","D-SCI-08AV1-K"]
[null,null,null,null,{"$f":"CONCATENATE(G523,\":\",F523,\"\")","v":"D-SCI-08BV1-K:SCI08B MS Physical Science"},"SCI08B MS Physical Science","D-SCI-08BV1-K"]
[null,null,null,null,{"$f":"CONCATENATE(G524,\":\",F524,\"\")","v":"D-SCI-102AXV1-K:SCI102AX Physical Science"},"SCI102AX Physical Science","D-SCI-102AXV1-K"]
[null,null,null,null,{"$f":"CONCATENATE(G525,\":\",F525,\"\")","v":"D-SCI-102BXV1-K:SCI102BX Physical Science"},"SCI102BX Physical Science","D-SCI-102BXV1-K"]
[null,null,null,null,{"$f":"CONCATENATE(G526,\":\",F526,\"\")","v":"D-SCI-106AV1-AVT:SCI106A-AVT Physical Science"},"SCI106A-AVT Physical Science","D-SCI-106AV1-AVT"]
[null,null,null,null,{"$f":"CONCATENATE(G527,\":\",F527,\"\")","v":"D-SCI-106AVG1-K:SCI106AG Physical Science"},"SCI106AG Physical Science","D-SCI-106AVG1-K"]
[null,null,null,null,{"$f":"CONCATENATE(G528,\":\",F528,\"\")","v":"D-SCI-106BV1-AVT:SCI106B-AVT Physical Science"},"SCI106B-AVT Physical Science","D-SCI-106BV1-AVT"]
[null,null,null,null,{"$f":"CONCATENATE(G529,\":\",F529,\"\")","v":"D-SCI-106BVG1-K:SCI106BG Physical Science"},"SCI106BG Physical Science","D-SCI-106BVG1-K"]
[null,null,null,null,{"$f":"CONCATENATE(G530,\":\",F530,\"\")","v":"D-SCI-112AXV1-K:SCI112AX Earth Science"},"SCI112AX Earth Science","D-SCI-112AXV1-K"]
[null,null,null,null,{"$f":"CONCATENATE(G531,\":\",F531,\"\")","v":"D-SCI-112BXV1-K:SCI112BX Earth Science"},"SCI112BX Earth Science","D-SCI-112BXV1-K"]
[null,null,null,null,{"$f":"CONCATENATE(G532,\":\",F532,\"\")","v":"D-SCI-113AXV1-K:SCI113AX Earth Science"},"SCI113AX Earth Science","D-SCI-113AXV1-K"]
[null,null,null,null,{"$f":"CONCATENATE(G533,\":\",F533,\"\")","v":"D-SCI-113BXV1-K:SCI113BX Earth Science"},"SCI113BX Earth Science","D-SCI-113BXV1-K"]
[null,null,null,null,{"$f":"CONCATENATE(G534,\":\",F534,\"\")","v":"D-SCI-114AXV1-K:SCI114AX Honors Earth Science"},"SCI114AX Honors Earth Science","D-SCI-114AXV1-K"]
[null,null,null,null,{"$f":"CONCATENATE(G535,\":\",F535,\"\")","v":"D-SCI-114BXV1-K:SCI114BX Honors Earth Science"},"SCI114BX Honors Earth Science","D-SCI-114BXV1-K"]
[null,null,null,null,{"$f":"CONCATENATE(G536,\":\",F536,\"\")","v":"D-SCI-116AV2-AVT:SCI116A-AVT Earth Science"},"SCI116A-AVT Earth Science","D-SCI-116AV2-AVT"]
[null,null,null,null,{"$f":"CONCATENATE(G537,\":\",F537,\"\")","v":"D-SCI-116AVG1-K:SCI116AG Earth Science"},"SCI116AG Earth Science","D-SCI-116AVG1-K"]
[null,null,null,null,{"$f":"CONCATENATE(G538,\":\",F538,\"\")","v":"D-SCI-116BV2-AVT:SCI116B-AVT Earth Science"},"SCI116B-AVT Earth Science","D-SCI-116BV2-AVT"]
[null,null,null,null,{"$f":"CONCATENATE(G539,\":\",F539,\"\")","v":"D-SCI-116BVG1-K:SCI116BG Earth Science"},"SCI116BG Earth Science","D-SCI-116BVG1-K"]
[null,null,null,null,{"$f":"CONCATENATE(G540,\":\",F540,\"\")","v":"D-SCI-202AXV1-K:SCI202AX Biology"},"SCI202AX Biology","D-SCI-202AXV1-K"]
[null,null,null,null,{"$f":"CONCATENATE(G541,\":\",F541,\"\")","v":"D-SCI-202BXV1-K:SCI202BX Biology"},"SCI202BX Biology","D-SCI-202BXV1-K"]
[null,null,null,null,{"$f":"CONCATENATE(G542,\":\",F542,\"\")","v":"D-SCI-203AXV1-K:SCI203AX Biology"},"SCI203AX Biology","D-SCI-203AXV1-K"]
[null,null,null,null,{"$f":"CONCATENATE(G543,\":\",F543,\"\")","v":"D-SCI-203BXV1-K:SCI203BX Biology"},"SCI203BX Biology","D-SCI-203BXV1-K"]
[null,null,null,null,{"$f":"CONCATENATE(G544,\":\",F544,\"\")","v":"D-SCI-204AXV1-K:SCI204AX Honors Biology"},"SCI204AX Honors Biology","D-SCI-204AXV1-K"]
[null,null,null,null,{"$f":"CONCATENATE(G545,\":\",F545,\"\")","v":"D-SCI-204BXV1-K:SCI204BX Honors Biology"},"SCI204BX Honors Biology","D-SCI-204BXV1-K"]
[null,null,null,null,{"$f":"CONCATENATE(G546,\":\",F546,\"\")","v":"D-SCI-206AV2-AVT:SCI206A-AVT Biology"},"SCI206A-AVT Biology","D-SCI-206AV2-AVT"]
[null,null,null,null,{"$f":"CONCATENATE(G547,\":\",F547,\"\")","v":"D-SCI-206AVG1-K:SCI206AG Biology"},"SCI206AG Biology","D-SCI-206AVG1-K"]
[null,null,null,null,{"$f":"CONCATENATE(G548,\":\",F548,\"\")","v":"D-SCI-206BV2-AVT:SCI206B-AVT Biology"},"SCI206B-AVT Biology","D-SCI-206BV2-AVT"]
[null,null,null,null,{"$f":"CONCATENATE(G549,\":\",F549,\"\")","v":"D-SCI-206BVG1-K:SCI206BG Biology"},"SCI206BG Biology","D-SCI-206BVG1-K"]
[null,null,null,null,{"$f":"CONCATENATE(G550,\":\",F550,\"\")","v":"D-SCI-302AV1-K:SCI302A Chemistry"},"SCI302A Chemistry","D-SCI-302AV1-K"]
[null,null,null,null,{"$f":"CONCATENATE(G551,\":\",F551,\"\")","v":"D-SCI-302AXV1-K:SCI302AX Chemistry"},"SCI302AX Chemistry","D-SCI-302AXV1-K"]
[null,null,null,null,{"$f":"CONCATENATE(G552,\":\",F552,\"\")","v":"D-SCI-302BXV1-K:SCI302BX Chemistry"},"SCI302BX Chemistry","D-SCI-302BXV1-K"]
[null,null,null,null,{"$f":"CONCATENATE(G553,\":\",F553,\"\")","v":"D-SCI-303AXV1-K:SCI303AX Chemistry"},"SCI303AX Chemistry","D-SCI-303AXV1-K"]
[null,null,null,null,{"$f":"CONCATENATE(G554,\":\",F554,\"\")","v":"D-SCI-303BXV1-K:SCI303BX Chemistry"},"SCI303BX Chemistry","D-SCI-303BXV1-K"]
[null,null,null,null,{"$f":"CONCATENATE(G555,\":\",F555,\"\")","v":"D-SCI-304AXV1-K:SCI304AX Honors Chemistry"},"SCI304AX Honors Chemistry","D-SCI-304AXV1-K"]
[null,null,null,null,{"$f":"CONCATENATE(G556,\":\",F556,\"\")","v":"D-SCI-304BXV1-K:SCI304BX Honors Chemistry"},"SCI304BX Honors Chemistry","D-SCI-304BXV1-K"]
[null,null,null,null,{"$f":"CONCATENATE(G557,\":\",F557,\"\")","v":"D-SCI-306AV1-AVT:SCI306A-AVT Chemistry"},"SCI306A-AVT Chemistry","D-SCI-306AV1-AVT"]
[null,null,null,null,{"$f":"CONCATENATE(G558,\":\",F558,\"\")","v":"D-SCI-306AVG1-K:SCI306AG Chemistry"},"SCI306AG Chemistry","D-SCI-306AVG1-K"]
[null,null,null,null,{"$f":"CONCATENATE(G559,\":\",F559,\"\")","v":"D-SCI-306AVSG1-K:SCI306ASG Chemistry"},"SCI306ASG Chemistry","D-SCI-306AVSG1-K"]
[null,null,null,null,{"$f":"CONCATENATE(G560,\":\",F560,\"\")","v":"D-SCI-306BV1-AVT:SCI306B-AVT Chemistry"},"SCI306B-AVT Chemistry","D-SCI-306BV1-AVT"]
[null,null,null,null,{"$f":"CONCATENATE(G561,\":\",F561,\"\")","v":"D-SCI-306BVG1-K:SCI306BG Chemistry"},"SCI306BG Chemistry","D-SCI-306BVG1-K"]
[null,null,null,null,{"$f":"CONCATENATE(G562,\":\",F562,\"\")","v":"D-SCI-306BVSG1-K:SCI306BSG Chemistry"},"SCI306BSG Chemistry","D-SCI-306BVSG1-K"]
[null,null,null,null,{"$f":"CONCATENATE(G563,\":\",F563,\"\")","v":"D-SCI-321V1-CEN:SCI321-CEN Anatomy and Physiology 1"},"SCI321-CEN Anatomy and Physiology 1","D-SCI-321V1-CEN"]
[null,null,null,null,{"$f":"CONCATENATE(G564,\":\",F564,\"\")","v":"D-SCI-322V1-CEN:SCI322-CEN Anatomy and Physiology 2"},"SCI322-CEN Anatomy and Physiology 2","D-SCI-322V1-CEN"]
[null,null,null,null,{"$f":"CONCATENATE(G565,\":\",F565,\"\")","v":"D-SCI-403AXV1-K:SCI403AX Physics"},"SCI403AX Physics","D-SCI-403AXV1-K"]
[null,null,null,null,{"$f":"CONCATENATE(G566,\":\",F566,\"\")","v":"D-SCI-403BXV1-K:SCI403BX Physics"},"SCI403BX Physics","D-SCI-403BXV1-K"]
[null,null,null,null,{"$f":"CONCATENATE(G567,\":\",F567,\"\")","v":"D-SCI-404AXV1-K:SCI404AX Honors Physics"},"SCI404AX Honors Physics","D-SCI-404AXV1-K"]
[null,null,null,null,{"$f":"CONCATENATE(G568,\":\",F568,\"\")","v":"D-SCI-404BXV1-K:SCI404BX Honors Physics"},"SCI404BX Honors Physics","D-SCI-404BXV1-K"]
[null,null,null,null,{"$f":"CONCATENATE(G569,\":\",F569,\"\")","v":"D-SCI-500AV2-K:SCI500A AP(R) Biology"},"SCI500A AP(R) Biology","D-SCI-500AV2-K"]
[null,null,null,null,{"$f":"CONCATENATE(G570,\":\",F570,\"\")","v":"D-SCI-500BV2-K:SCI500B AP(R) Biology"},"SCI500B AP(R) Biology","D-SCI-500BV2-K"]
[null,null,null,null,{"$f":"CONCATENATE(G571,\":\",F571,\"\")","v":"D-SCI-500PREPV2-K:AP Biology Exam Review**"},"AP Biology Exam Review**","D-SCI-500PREPV2-K"]
[null,null,null,null,{"$f":"CONCATENATE(G572,\":\",F572,\"\")","v":"D-SCI-510AV2-A:SCI510A AP(R) Chemistry"},"SCI510A AP(R) Chemistry","D-SCI-510AV2-A"]
[null,null,null,null,{"$f":"CONCATENATE(G573,\":\",F573,\"\")","v":"D-SCI-510BV2-A:SCI510B AP(R) Chemistry"},"SCI510B AP(R) Chemistry","D-SCI-510BV2-A"]
[null,null,null,null,{"$f":"CONCATENATE(G574,\":\",F574,\"\")","v":"D-SCI-530AV1-AVT:SCI530A-AVT AP(R) Environmental Science"},"SCI530A-AVT AP(R) Environmental Science","D-SCI-530AV1-AVT"]
[null,null,null,null,{"$f":"CONCATENATE(G575,\":\",F575,\"\")","v":"D-SCI-530BV1-AVT:SCI530B-AVT AP(R) Environmental Science"},"SCI530B-AVT AP(R) Environmental Science","D-SCI-530BV1-AVT"]
[null,null,null,null,{"$f":"CONCATENATE(G576,\":\",F576,\"\")","v":"D-SCI-530PREPV1-K:AP Environmental Science Exam Review*"},"AP Environmental Science Exam Review*","D-SCI-530PREPV1-K"]
[null,null,null,null,{"$f":"CONCATENATE(G577,\":\",F577,\"\")","v":"D-TCH-010V3-K:TCH010 Computer Literacy"},"TCH010 Computer Literacy","D-TCH-010V3-K"]
[null,null,null,null,{"$f":"CONCATENATE(G578,\":\",F578,\"\")","v":"D-TCH-017V1-K:TCH017 3D Art I-Modeling"},"TCH017 3D Art I-Modeling","D-TCH-017V1-K"]
[null,null,null,null,{"$f":"CONCATENATE(G579,\":\",F579,\"\")","v":"D-TCH-018V1-K:TCH018 3D Art II-Animation"},"TCH018 3D Art II-Animation","D-TCH-018V1-K"]
[null,null,null,null,{"$f":"CONCATENATE(G580,\":\",F580,\"\")","v":"D-TCH-020AV2-K:TCH020A Computer Fundamentals"},"TCH020A Computer Fundamentals","D-TCH-020AV2-K"]
[null,null,null,null,{"$f":"CONCATENATE(G581,\":\",F581,\"\")","v":"D-TCH-020BV2-K:TCH020B Computer Fundamentals"},"TCH020B Computer Fundamentals","D-TCH-020BV2-K"]
[null,null,null,null,{"$f":"CONCATENATE(G582,\":\",F582,\"\")","v":"D-TCH-026V1-K:TCH026 Audio Engineering"},"TCH026 Audio Engineering","D-TCH-026V1-K"]
[null,null,null,null,{"$f":"CONCATENATE(G583,\":\",F583,\"\")","v":"D-TCH-027V1-K:TCH027 Green Design and Technology"},"TCH027 Green Design and Technology","D-TCH-027V1-K"]
[null,null,null,null,{"$f":"CONCATENATE(G584,\":\",F584,\"\")","v":"D-TCH-028V1-K:TCH028 Digital Arts I"},"TCH028 Digital Arts I","D-TCH-028V1-K"]
[null,null,null,null,{"$f":"CONCATENATE(G585,\":\",F585,\"\")","v":"D-TCH-029V1-G:TCH029 Digital Arts II"},"TCH029 Digital Arts II","D-TCH-029V1-G"]
[null,null,null,null,{"$f":"CONCATENATE(G586,\":\",F586,\"\")","v":"D-TCH-030V3-K:TCH030 Image Design and Editing"},"TCH030 Image Design and Editing","D-TCH-030V3-K"]
[null,null,null,null,{"$f":"CONCATENATE(G587,\":\",F587,\"\")","v":"D-TCH-031V1-DYN:TCH031-DYN Digital Photography I"},"TCH031-DYN Digital Photography I","D-TCH-031V1-DYN"]
[null,null,null,null,{"$f":"CONCATENATE(G588,\":\",F588,\"\")","v":"D-TCH-032V1-DYN:TCH032-DYN Digital Photography II"},"TCH032-DYN Digital Photography II","D-TCH-032V1-DYN"]
[null,null,null,null,{"$f":"CONCATENATE(G589,\":\",F589,\"\")","v":"D-TCH-036V1-K:TCH036 Computer Science"},"TCH036 Computer Science","D-TCH-036V1-K"]
[null,null,null,null,{"$f":"CONCATENATE(G590,\":\",F590,\"\")","v":"D-TCH-038V1-K:TCH038 Engineering Design"},"TCH038 Engineering Design","D-TCH-038V1-K"]
[null,null,null,null,{"$f":"CONCATENATE(G591,\":\",F591,\"\")","v":"D-TCH-040V2-K:TCH040 Web Design"},"TCH040 Web Design","D-TCH-040V2-K"]
[null,null,null,null,{"$f":"CONCATENATE(G592,\":\",F592,\"\")","v":"D-TCH-041V1-K:TCH041 Web Design"},"TCH041 Web Design","D-TCH-041V1-K"]
[null,null,null,null,{"$f":"CONCATENATE(G593,\":\",F593,\"\")","v":"D-TCH-060V1-K:TCH060 C++ Programming"},"TCH060 C++ Programming","D-TCH-060V1-K"]
[null,null,null,null,{"$f":"CONCATENATE(G594,\":\",F594,\"\")","v":"D-TCH-061V1-AVT:TCH061-AVT Programming I-VB.NET"},"TCH061-AVT Programming I-VB.NET","D-TCH-061V1-AVT"]
[null,null,null,null,{"$f":"CONCATENATE(G595,\":\",F595,\"\")","v":"D-TCH-062V1-AVT:TCH062-AVT Programming II-Java"},"TCH062-AVT Programming II-Java","D-TCH-062V1-AVT"]
[null,null,null,null,{"$f":"CONCATENATE(G596,\":\",F596,\"\")","v":"D-TCH-070V2-K:TCH070 Game Design"},"TCH070 Game Design","D-TCH-070V2-K"]
[null,null,null,null,{"$f":"CONCATENATE(G597,\":\",F597,\"\")","v":"D-TCH-101V1-AVT:TCH101-AVT Digital Photography"},"TCH101-AVT Digital Photography","D-TCH-101V1-AVT"]
[null,null,null,null,{"$f":"CONCATENATE(G598,\":\",F598,\"\")","v":"D-WLG-100AV1-M:WLG100A Spanish I"},"WLG100A Spanish I","D-WLG-100AV1-M"]
[null,null,null,null,{"$f":"CONCATENATE(G599,\":\",F599,\"\")","v":"D-WLG-100BV1-M:WLG100B Spanish I"},"WLG100B Spanish I","D-WLG-100BV1-M"]
[null,null,null,null,{"$f":"CONCATENATE(G600,\":\",F600,\"\")","v":"D-WLG-106AV1-AVT:WLG106A-AVT Spanish I"},"WLG106A-AVT Spanish I","D-WLG-106AV1-AVT"]
[null,null,null,null,{"$f":"CONCATENATE(G601,\":\",F601,\"\")","v":"D-WLG-106BV1-AVT:WLG106B-AVT Spanish I"},"WLG106B-AVT Spanish I","D-WLG-106BV1-AVT"]
[null,null,null,null,{"$f":"CONCATENATE(G602,\":\",F602,\"\")","v":"D-WLG-110AV1-Demo:WLG110A French I Demo"},"WLG110A French I Demo","D-WLG-110AV1-Demo"]
[null,null,null,null,{"$f":"CONCATENATE(G603,\":\",F603,\"\")","v":"D-WLG-110AV1-M:WLG110A French I"},"WLG110A French I","D-WLG-110AV1-M"]
[null,null,null,null,{"$f":"CONCATENATE(G604,\":\",F604,\"\")","v":"D-WLG-110BV1-M:WLG110B French I"},"WLG110B French I","D-WLG-110BV1-M"]
[null,null,null,null,{"$f":"CONCATENATE(G605,\":\",F605,\"\")","v":"D-WLG-120AV1-M:WLG120A German I"},"WLG120A German I","D-WLG-120AV1-M"]
[null,null,null,null,{"$f":"CONCATENATE(G606,\":\",F606,\"\")","v":"D-WLG-120BV1-M:WLG120B German I"},"WLG120B German I","D-WLG-120BV1-M"]
[null,null,null,null,{"$f":"CONCATENATE(G607,\":\",F607,\"\")","v":"D-WLG-130AV1-M:WLG130A Latin I"},"WLG130A Latin I","D-WLG-130AV1-M"]
[null,null,null,null,{"$f":"CONCATENATE(G608,\":\",F608,\"\")","v":"D-WLG-130BV1-M:WLG130B Latin I"},"WLG130B Latin I","D-WLG-130BV1-M"]
[null,null,null,null,{"$f":"CONCATENATE(G609,\":\",F609,\"\")","v":"D-WLG-140AV1-M:WLG140A Chinese I"},"WLG140A Chinese I","D-WLG-140AV1-M"]
[null,null,null,null,{"$f":"CONCATENATE(G610,\":\",F610,\"\")","v":"D-WLG-140BV1-M:WLG140B Chinese I"},"WLG140B Chinese I","D-WLG-140BV1-M"]
[null,null,null,null,{"$f":"CONCATENATE(G611,\":\",F611,\"\")","v":"D-WLG-150AV1-AVT:WLG150A-AVT Japanese I"},"WLG150A-AVT Japanese I","D-WLG-150AV1-AVT"]
[null,null,null,null,{"$f":"CONCATENATE(G612,\":\",F612,\"\")","v":"D-WLG-150BV1-AVT:WLG150B-AVT Japanese I"},"WLG150B-AVT Japanese I","D-WLG-150BV1-AVT"]
[null,null,null,null,{"$f":"CONCATENATE(G613,\":\",F613,\"\")","v":"D-WLG-200AV1-M:WLG200A Spanish II"},"WLG200A Spanish II","D-WLG-200AV1-M"]
[null,null,null,null,{"$f":"CONCATENATE(G614,\":\",F614,\"\")","v":"D-WLG-200BV1-M:WLG200B Spanish II"},"WLG200B Spanish II","D-WLG-200BV1-M"]
[null,null,null,null,{"$f":"CONCATENATE(G615,\":\",F615,\"\")","v":"D-WLG-210AV1-M:WLG210A French II"},"WLG210A French II","D-WLG-210AV1-M"]
[null,null,null,null,{"$f":"CONCATENATE(G616,\":\",F616,\"\")","v":"D-WLG-210BV1-M:WLG210B French II"},"WLG210B French II","D-WLG-210BV1-M"]
[null,null,null,null,{"$f":"CONCATENATE(G617,\":\",F617,\"\")","v":"D-WLG-220AV1-M:WLG220A German II"},"WLG220A German II","D-WLG-220AV1-M"]
[null,null,null,null,{"$f":"CONCATENATE(G618,\":\",F618,\"\")","v":"D-WLG-220BV1-M:WLG220B German II"},"WLG220B German II","D-WLG-220BV1-M"]
[null,null,null,null,{"$f":"CONCATENATE(G619,\":\",F619,\"\")","v":"D-WLG-230AV1-M:WLG230A Latin II"},"WLG230A Latin II","D-WLG-230AV1-M"]
[null,null,null,null,{"$f":"CONCATENATE(G620,\":\",F620,\"\")","v":"D-WLG-230BV1-M:WLG230B Latin II"},"WLG230B Latin II","D-WLG-230BV1-M"]
[null,null,null,null,{"$f":"CONCATENATE(G621,\":\",F621,\"\")","v":"D-WLG-240AV1-M:WLG240A Chinese II"},"WLG240A Chinese II","D-WLG-240AV1-M"]
[null,null,null,null,{"$f":"CONCATENATE(G622,\":\",F622,\"\")","v":"D-WLG-240BV1-M:WLG240B Chinese II"},"WLG240B Chinese II","D-WLG-240BV1-M"]
[null,null,null,null,{"$f":"CONCATENATE(G623,\":\",F623,\"\")","v":"D-WLG-250AV1-AVT:WLG250A-AVT Japanese II"},"WLG250A-AVT Japanese II","D-WLG-250AV1-AVT"]
[null,null,null,null,{"$f":"CONCATENATE(G624,\":\",F624,\"\")","v":"D-WLG-250BV1-AVT:WLG250B-AVT Japanese II"},"WLG250B-AVT Japanese II","D-WLG-250BV1-AVT"]
[null,null,null,null,{"$f":"CONCATENATE(G625,\":\",F625,\"\")","v":"D-WLG-300AV1-M:WLG300A Spanish III"},"WLG300A Spanish III","D-WLG-300AV1-M"]
[null,null,null,null,{"$f":"CONCATENATE(G626,\":\",F626,\"\")","v":"D-WLG-300BV1-M:WLG300B Spanish III"},"WLG300B Spanish III","D-WLG-300BV1-M"]
[null,null,null,null,{"$f":"CONCATENATE(G627,\":\",F627,\"\")","v":"D-WLG-310AV1-M:WLG310A French III"},"WLG310A French III","D-WLG-310AV1-M"]
[null,null,null,null,{"$f":"CONCATENATE(G628,\":\",F628,\"\")","v":"D-WLG-310BV1-M:WLG310B French III"},"WLG310B French III","D-WLG-310BV1-M"]
[null,null,null,null,{"$f":"CONCATENATE(G629,\":\",F629,\"\")","v":"D-WLG-320AV1-AVT:WLG320A-AVT German III"},"WLG320A-AVT German III","D-WLG-320AV1-AVT"]
[null,null,null,null,{"$f":"CONCATENATE(G630,\":\",F630,\"\")","v":"D-WLG-320BV1-AVT:WLG320B-AVT German III"},"WLG320B-AVT German III","D-WLG-320BV1-AVT"]
[null,null,null,null,{"$f":"CONCATENATE(G631,\":\",F631,\"\")","v":"D-WLG-400AV1-AVT:WLG400A-AVT Spanish IV"},"WLG400A-AVT Spanish IV","D-WLG-400AV1-AVT"]
[null,null,null,null,{"$f":"CONCATENATE(G632,\":\",F632,\"\")","v":"D-WLG-400BV1-AVT:WLG400B-AVT Spanish IV"},"WLG400B-AVT Spanish IV","D-WLG-400BV1-AVT"]
[null,null,null,null,{"$f":"CONCATENATE(G633,\":\",F633,\"\")","v":"D-WLG-410AV1-AVT:WLG410A-AVT French IV"},"WLG410A-AVT French IV","D-WLG-410AV1-AVT"]
[null,null,null,null,{"$f":"CONCATENATE(G634,\":\",F634,\"\")","v":"D-WLG-410BV1-AVT:WLG410B-AVT French IV"},"WLG410B-AVT French IV","D-WLG-410BV1-AVT"]
[null,null,null,null,{"$f":"CONCATENATE(G635,\":\",F635,\"\")","v":"D-WLG-420AV1-AVT:WLG420A-AVT German IV"},"WLG420A-AVT German IV","D-WLG-420AV1-AVT"]
[null,null,null,null,{"$f":"CONCATENATE(G636,\":\",F636,\"\")","v":"D-WLG-420BV1-AVT:WLG420B-AVT German IV"},"WLG420B-AVT German IV","D-WLG-420BV1-AVT"]
[null,null,null,null,{"$f":"CONCATENATE(G637,\":\",F637,\"\")","v":"D-WLG-500AV1-M:WLG500A AP(R) Spanish Language and Culture"},"WLG500A AP(R) Spanish Language and Culture","D-WLG-500AV1-M"]
[null,null,null,null,{"$f":"CONCATENATE(G638,\":\",F638,\"\")","v":"D-WLG-500BV1-M:WLG500B AP(R) Spanish Language and Culture"},"WLG500B AP(R) Spanish Language and Culture","D-WLG-500BV1-M"]
[null,null,null,null,{"$f":"CONCATENATE(G639,\":\",F639,\"\")","v":"D-WLG-500PREPV2-M:AP Spanish Language Exam Review"},"AP Spanish Language Exam Review","D-WLG-500PREPV2-M"]
[null,null,null,null,{"$f":"CONCATENATE(G640,\":\",F640,\"\")","v":"D-WLG-510AV1-M:WLG510A AP(R) French Language and Culture"},"WLG510A AP(R) French Language and Culture","D-WLG-510AV1-M"]
[null,null,null,null,{"$f":"CONCATENATE(G641,\":\",F641,\"\")","v":"D-WLG-510BV1-M:WLG510B AP(R) French Language and Culture"},"WLG510B AP(R) French Language and Culture","D-WLG-510BV1-M"]
[null,null,null,null,{"$f":"CONCATENATE(G642,\":\",F642,\"\")","v":"D-WLG-510PREPV2-M:AP French Language Exam Review"},"AP French Language Exam Review","D-WLG-510PREPV2-M"]
[null,null,null,null,{"$f":"CONCATENATE(G643,\":\",F643,\"\")","v":"ESEY1:Spanish Elementary Year 1"},"Spanish Elementary Year 1","ESEY1"]
[null,null,null,null,{"$f":"CONCATENATE(G644,\":\",F644,\"\")","v":"ESEY2:Spanish Elementary Year 2"},"Spanish Elementary Year 2","ESEY2"]
[null,null,null,null,{"$f":"CONCATENATE(G645,\":\",F645,\"\")","v":"ESMY1-AG-V2-MIL:Spanish Middle School 1 - AG"},"Spanish Middle School 1 - AG","ESMY1-AG-V2-MIL"]
[null,null,null,null,{"$f":"CONCATENATE(G646,\":\",F646,\"\")","v":"ESMY1-TG-V3-MIL:Spanish Middle School 1 - TG"},"Spanish Middle School 1 - TG","ESMY1-TG-V3-MIL"]
[null,null,null,null,{"$f":"CONCATENATE(G647,\":\",F647,\"\")","v":"ESMY2-TG-V3-MIL:Spanish Middle School 2 - TG"},"Spanish Middle School 2 - TG","ESMY2-TG-V3-MIL"]
[null,null,null,null,{"$f":"CONCATENATE(G648,\":\",F648,\"\")","v":"FREY1:French Elementary Year 1"},"French Elementary Year 1","FREY1"]
[null,null,null,null,{"$f":"CONCATENATE(G649,\":\",F649,\"\")","v":"FREY2:French Elementary Year 2"},"French Elementary Year 2","FREY2"]
[null,null,null,null,{"$f":"CONCATENATE(G650,\":\",F650,\"\")","v":"FRMY1-AG-V2-MIL:French Middle School 1 - AG"},"French Middle School 1 - AG","FRMY1-AG-V2-MIL"]
[null,null,null,null,{"$f":"CONCATENATE(G651,\":\",F651,\"\")","v":"FRMY1-TG-V3-MIL:French Middle School 1 - TG"},"French Middle School 1 - TG","FRMY1-TG-V3-MIL"]
[null,null,null,null,{"$f":"CONCATENATE(G652,\":\",F652,\"\")","v":"FRMY2-TG-V3-MIL:French Middle School 2 - TG"},"French Middle School 2 - TG","FRMY2-TG-V3-MIL"]
[null,null,null,null,{"$f":"CONCATENATE(G653,\":\",F653,\"\")","v":"HISF1:State History"},"State History","HISF1"]
[null,null,null,null,{"$f":"CONCATENATE(G654,\":\",F654,\"\")","v":"HT1F1:Health 1 (Attendance)"},"Health 1 (Attendance)","HT1F1"]
[null,null,null,null,{"$f":"CONCATENATE(G655,\":\",F655,\"\")","v":"HT2F1:Health 2 (Attendance)"},"Health 2 (Attendance)","HT2F1"]
[null,null,null,null,{"$f":"CONCATENATE(G656,\":\",F656,\"\")","v":"HT3F1:Health 3 (Attendance)"},"Health 3 (Attendance)","HT3F1"]
[null,null,null,null,{"$f":"CONCATENATE(G657,\":\",F657,\"\")","v":"HT4F1:Health 4 (Attendance)"},"Health 4 (Attendance)","HT4F1"]
[null,null,null,null,{"$f":"CONCATENATE(G658,\":\",F658,\"\")","v":"HT5F1:Health 5 (Attendance)"},"Health 5 (Attendance)","HT5F1"]
[null,null,null,null,{"$f":"CONCATENATE(G659,\":\",F659,\"\")","v":"HT6F1:Health 6 (Attendance)"},"Health 6 (Attendance)","HT6F1"]
[null,null,null,null,{"$f":"CONCATENATE(G660,\":\",F660,\"\")","v":"HT7F1:Health 7 (Attendance)"},"Health 7 (Attendance)","HT7F1"]
[null,null,null,null,{"$f":"CONCATENATE(G661,\":\",F661,\"\")","v":"HT8F1:Health 8 (Attendance)"},"Health 8 (Attendance)","HT8F1"]
[null,null,null,null,{"$f":"CONCATENATE(G662,\":\",F662,\"\")","v":"HTKF1:Health K (Attendance)"},"Health K (Attendance)","HTKF1"]
[null,null,null,null,{"$f":"CONCATENATE(G663,\":\",F663,\"\")","v":"LNEY1:Latin Elementary Year 1"},"Latin Elementary Year 1","LNEY1"]
[null,null,null,null,{"$f":"CONCATENATE(G664,\":\",F664,\"\")","v":"LNMY1-AG-V2-MIL:Latin Middle School 1 - AG"},"Latin Middle School 1 - AG","LNMY1-AG-V2-MIL"]
[null,null,null,null,{"$f":"CONCATENATE(G665,\":\",F665,\"\")","v":"LNMY1-TG-V3-MIL:Latin Middle School 1 - TG"},"Latin Middle School 1 - TG","LNMY1-TG-V3-MIL"]
[null,null,null,null,{"$f":"CONCATENATE(G666,\":\",F666,\"\")","v":"LNMY2-TG-V3-MIL:Latin Middle School 2 - TG"},"Latin Middle School 2 - TG","LNMY2-TG-V3-MIL"]
[null,null,null,null,{"$f":"CONCATENATE(G667,\":\",F667,\"\")","v":"MU1F1:Beginning 1 Music"},"Beginning 1 Music","MU1F1"]
[null,null,null,null,{"$f":"CONCATENATE(G668,\":\",F668,\"\")","v":"MU2F1:Beginning 2 Music"},"Beginning 2 Music","MU2F1"]
[null,null,null,null,{"$f":"CONCATENATE(G669,\":\",F669,\"\")","v":"MU3F1:Intermed. 1 Music"},"Intermed. 1 Music","MU3F1"]
[null,null,null,null,{"$f":"CONCATENATE(G670,\":\",F670,\"\")","v":"MU4F1:Intermed. 2 Music"},"Intermed. 2 Music","MU4F1"]
[null,null,null,null,{"$f":"CONCATENATE(G671,\":\",F671,\"\")","v":"MU5F1:Intermed. 3 Music"},"Intermed. 3 Music","MU5F1"]
[null,null,null,null,{"$f":"CONCATENATE(G672,\":\",F672,\"\")","v":"MU8F1:Music Appreciation"},"Music Appreciation","MU8F1"]
[null,null,null,null,{"$f":"CONCATENATE(G673,\":\",F673,\"\")","v":"MUAF1:Music Concepts A"},"Music Concepts A","MUAF1"]
[null,null,null,null,{"$f":"CONCATENATE(G674,\":\",F674,\"\")","v":"MUBF1:Music Concepts B"},"Music Concepts B","MUBF1"]
[null,null,null,null,{"$f":"CONCATENATE(G675,\":\",F675,\"\")","v":"MUKF1:Preparatory Music"},"Preparatory Music","MUKF1"]
[null,null,null,null,{"$f":"CONCATENATE(G676,\":\",F676,\"\")","v":"MUNF1:Intro. to Music"},"Intro. to Music","MUNF1"]
[null,null,null,null,{"$f":"CONCATENATE(G677,\":\",F677,\"\")","v":"MUTF1:Music (Attendance)"},"Music (Attendance)","MUTF1"]
[null,null,null,null,{"$f":"CONCATENATE(G678,\":\",F678,\"\")","v":"MUXF1:Exploring Music"},"Exploring Music","MUXF1"]
[null,null,null,null,{"$f":"CONCATENATE(G679,\":\",F679,\"\")","v":"ONLRN:Introduction to High School Online Learning"},"Introduction to High School Online Learning","ONLRN"]
[null,null,null,null,{"$f":"CONCATENATE(G680,\":\",F680,\"\")","v":"PEWF1:Physical Education with Lessons"},"Physical Education with Lessons","PEWF1"]
[null,null,null,null,{"$f":"CONCATENATE(G681,\":\",F681,\"\")","v":"PEXF1:Physical Education without Lessons (Attendance)"},"Physical Education without Lessons (Attendance)","PEXF1"]
[null,null,null,null,{"$f":"CONCATENATE(G682,\":\",F682,\"\")","v":"RS1F1:Related Services (Attendance)"},"Related Services (Attendance)","RS1F1"]
[null,null,null,null,{"$f":"CONCATENATE(G683,\":\",F683,\"\")","v":"SA1F1:Supplemental Activities (Attendance)"},"Supplemental Activities (Attendance)","SA1F1"]
[null,null,null,null,{"$f":"CONCATENATE(G684,\":\",F684,\"\")","v":"SI3F1:Study Island"},"Study Island","SI3F1"]
[null,null,null,null,{"$f":"CONCATENATE(G685,\":\",F685,\"\")","v":"ST3M1:Strategies for Success: Grade 3"},"Strategies for Success: Grade 3","ST3M1"]
[null,null,null,null,{"$f":"CONCATENATE(G686,\":\",F686,\"\")","v":"ST5M1:Strategies for Success: Grade 5"},"Strategies for Success: Grade 5","ST5M1"]
[null,null,null,null,{"$f":"CONCATENATE(G687,\":\",F687,\"\")","v":"ST7M1:Strategies for Success: Grade 7"},"Strategies for Success: Grade 7","ST7M1"]
[null,null,null,null,{"$f":"CONCATENATE(G688,\":\",F688,\"\")","v":"ST8M1:Strategies for Success: Grade 8"},"Strategies for Success: Grade 8","ST8M1"]
[null,null,null,null,{"$f":"CONCATENATE(G689,\":\",F689,\"\")","v":"STAM1:Strategies for Success: Grade 2"},"Strategies for Success: Grade 2","STAM1"]
[null,null,null,null,{"$f":"CONCATENATE(G690,\":\",F690,\"\")","v":"STBM1:Strategies for Success: Grade 4"},"Strategies for Success: Grade 4","STBM1"]
[null,null,null,null,{"$f":"CONCATENATE(G691,\":\",F691,\"\")","v":"STCM1:Strategies for Success: Grade 6"},"Strategies for Success: Grade 6","STCM1"]
[null,null,null,null,{"$f":"CONCATENATE(G692,\":\",F692,\"\")","v":"TC1F1:Technology 1 (Attendance)"},"Technology 1 (Attendance)","TC1F1"]
[null,null,null,null,{"$f":"CONCATENATE(G693,\":\",F693,\"\")","v":"TC2F1:Technology 2 (Attendance)"},"Technology 2 (Attendance)","TC2F1"]
[null,null,null,null,{"$f":"CONCATENATE(G694,\":\",F694,\"\")","v":"TC3F1:Technology 3 (Attendance)"},"Technology 3 (Attendance)","TC3F1"]
[null,null,null,null,{"$f":"CONCATENATE(G695,\":\",F695,\"\")","v":"TC4F1:Technology 4 (Attendance)"},"Technology 4 (Attendance)","TC4F1"]
[null,null,null,null,{"$f":"CONCATENATE(G696,\":\",F696,\"\")","v":"TC5F1:Technology 5 (Attendance)"},"Technology 5 (Attendance)","TC5F1"]
[null,null,null,null,{"$f":"CONCATENATE(G697,\":\",F697,\"\")","v":"TC6F1:Technology 6 (Attendance)"},"Technology 6 (Attendance)","TC6F1"]
[null,null,null,null,{"$f":"CONCATENATE(G698,\":\",F698,\"\")","v":"TC7F1:Technology 7 (Attendance)"},"Technology 7 (Attendance)","TC7F1"]
[null,null,null,null,{"$f":"CONCATENATE(G699,\":\",F699,\"\")","v":"TC8F1:Technology 8 (Attendance)"},"Technology 8 (Attendance)","TC8F1"]
[null,null,null,null,{"$f":"CONCATENATE(G700,\":\",F700,\"\")","v":"TCKF1:Technology K (Attendance)"},"Technology K (Attendance)","TCKF1"]
[null,null,null,null,{"$f":"CONCATENATE(G701,\":\",F701,\"\")","v":"TI1F1:Title 1 (Attendance)"},"Title 1 (Attendance)","TI1F1"]
[null,null,null,null,{"$f":"CONCATENATE(G702,\":\",F702,\"\")","v":"VA1F1:Art 1"},"Art 1","VA1F1"]
[null,null,null,null,{"$f":"CONCATENATE(G703,\":\",F703,\"\")","v":"VA2F1:Art 2"},"Art 2","VA2F1"]
[null,null,null,null,{"$f":"CONCATENATE(G704,\":\",F704,\"\")","v":"VA3F1:Art 3"},"Art 3","VA3F1"]
[null,null,null,null,{"$f":"CONCATENATE(G705,\":\",F705,\"\")","v":"VA4F1:Art 4"},"Art 4","VA4F1"]
[null,null,null,null,{"$f":"CONCATENATE(G706,\":\",F706,\"\")","v":"VA6F1:Art American A"},"Art American A","VA6F1"]
[null,null,null,null,{"$f":"CONCATENATE(G707,\":\",F707,\"\")","v":"VA7F1:Art American B"},"Art American B","VA7F1"]
[null,null,null,null,{"$f":"CONCATENATE(G708,\":\",F708,\"\")","v":"VA8F1:Intermediate Art: World A"},"Intermediate Art: World A","VA8F1"]
[null,null,null,null,{"$f":"CONCATENATE(G709,\":\",F709,\"\")","v":"VABF1:Intermediate Art: World B"},"Intermediate Art: World B","VABF1"]
[null,null,null,null,{"$f":"CONCATENATE(G710,\":\",F710,\"\")","v":"VAKF1:Art K"},"Art K","VAKF1"]

{"sheet":"Version History","index":2,"n_rows":5,"n_cols":3,"rows_kept":5,"cut":false,"hidden":false,"merged":[]}
["Date","Version","Notes"]
["2013-09-03",1,"Initial Production release to teachers and staff."]
["2013-10-10",1.1000000000000001,"Update with bug fix to correct for differences between policy and tool.\nBug: Updated naming convention to use 4 \"_\" and 1 \":\" instead of 5 \"_\".\nAdded: Version, Notes and Date to NCTool Sheet."]
["2013-10-14",1.1000000000000001,"Update with bug fix to correct for differences between policy and tool.\nBug: Updated tool with \"HELPSESSION\" course code as described in policy document.\nAdded: Version History Sheet.\nRemoved: Notes on NCTool sheet."]
["2014-08-12",1.1000000000000001,"Removed protection from Required Values sheet to allow updating by other users."]